Workbook

Sheet MENU
A6: C1
A7: =LEFT(C7,4) -> 
A10: C5. | C10: C5. ELECTORES POR PAÍS DE ORIGEN
C25: Observaciones al
C26: correo electrónico: dejecutiva@tse.go.cr
A27: =LEFT(C27,4) -> 

Sheet 1
A1: CUADRO 1
A2: COSTA RICA: TOTAL Y VARIACIÓN DEL ELECTORADO
A3: ENTRE FEBRERO 2014 Y DICIEMBRE 2014
A4: SEGÚN PROVINCIA Y SEXO
A6: Provincia y sexo | B6: Padrón Nacional Electoral | E6: Variación
B7: Febrero 2014 | C7: Diciembre 2014 | E7: Absoluto | F7: Porcentaje
A9: Costa Rica | B9: =B13+B17+B21+B25+B29+B33+B37+B41 -> 3078321 | C9: =C13+C17+C21+C25+C29+C33+C37+C41 -> 3137855 | E9: =C9-B9 -> 59534 | F9: =E9/B9*100 -> 1.933976346
A10: Hombres | B10: 1535869 | C10: 1566434 | E10: =C10-B10 -> 30565 | F10: =E10/B10*100 -> 1.990078581
A11: Mujeres | B11: 1542452 | C11: 1571421 | E11: =C11-B11 -> 28969 | F11: =E11/B11*100 -> 1.878113549
A13: San José | B13: =SUM(B14:B15) -> 1063061 | C13: =+C14+C15 -> 1074330 | E13: =C13-B13 -> 11269 | F13: =E13/B13*100 -> 1.060052057
A14: Hombres | B14: 518312 | C14: 524036 | E14: =C14-B14 -> 5724 | F14: =E14/B14*100 -> 1.104354134
A15: Mujeres | B15: 544749 | C15: 550294 | E15: =C15-B15 -> 5545 | F15: =E15/B15*100 -> 1.017899987
A17: Alajuela | B17: =+B18+B19 -> 577493 | C17: =+C18+C19 -> 590908 | E17: =C17-B17 -> 13415 | F17: =E17/B17*100 -> 2.32297188
A18: Hombres | B18: 291277 | C18: 298378 | E18: =C18-B18 -> 7101 | F18: =E18/B18*100 -> 2.437885587
A19: Mujeres | B19: 286216 | C19: 292530 | E19: =C19-B19 -> 6314 | F19: =E19/B19*100 -> 2.206026218
A21: Cartago | B21: =+B22+B23 -> 359985 | C21: =+C22+C23 -> 366959 | E21: =C21-B21 -> 6974 | F21: =E21/B21*100 -> 1.937302943
A22: Hombres | B22: 179449 | C22: 183024 | E22: =C22-B22 -> 3575 | F22: =E22/B22*100 -> 1.992209486
A23: Mujeres | B23: 180536 | C23: 183935 | E23: =C23-B23 -> 3399 | F23: =E23/B23*100 -> 1.882726991
A25: Heredia | B25: =+B26+B27 -> 306901 | C25: =+C26+C27 -> 313241 | E25: =C25-B25 -> 6340 | F25: =E25/B25*100 -> 2.065812754
A26: Hombres | B26: 151098 | C26: 154242 | E26: =C26-B26 -> 3144 | F26: =E26/B26*100 -> 2.080768773
A27: Mujeres | B27: 155803 | C27: 158999 | E27: =C27-B27 -> 3196 | F27: =E27/B27*100 -> 2.051308383
A29: Guanacaste | B29: =+B30+B31 -> 221688 | C29: =+C30+C31 -> 226132 | E29: =C29-B29 -> 4444 | F29: =E29/B29*100 -> 2.004619104
A30: Hombres | B30: 112201 | C30: 114492 | E30: =C30-B30 -> 2291 | F30: =E30/B30*100 -> 2.041871285
A31: Mujeres | B31: 109487 | C31: 111640 | E31: =C31-B31 -> 2153 | F31: =E31/B31*100 -> 1.966443505
A33: Puntarenas | B33: =+B34+B35 -> 287254 | C33: =+C34+C35 -> 293006 | E33: =C33-B33 -> 5752 | F33: =E33/B33*100 -> 2.002409018
A34: Hombres | B34: 147881 | C34: 150676 | E34: =C34-B34 -> 2795 | F34: =E34/B34*100 -> 1.890033202
A35: Mujeres | B35: 139373 | C35: 142330 | E35: =C35-B35 -> 2957 | F35: =E35/B35*100 -> 2.121644795
A37: Limón | B37: =+B38+B39 -> 249285 | C37: =+C38+C39 -> 255658 | E37: =C37-B37 -> 6373 | F37: =E37/B37*100 -> 2.556511623
A38: Hombres | B38: 129143 | C38: 132421 | E38: =C38-B38 -> 3278 | F38: =E38/B38*100 -> 2.538271528
A39: Mujeres | B39: 120142 | C39: 123237 | E39: =C39-B39 -> 3095 | F39: =E39/B39*100 -> 2.57611826
A41: En el extranjero 1/ | B41: =+B42+B43 -> 12654 | C41: =+C42+C43 -> 17621 | E41: =C41-B41 -> 4967 | F41: =E41/B41*100 -> 39.25241031
A42: Hombres | B42: 6508 | C42: 9165 | E42: =C42-B42 -> 2657 | F42: =E42/B42*100 -> 40.82667486
A43: Mujeres | B43: 6146 | C43: 8456 | E43: =C43-B43 -> 2310 | F43: =E43/B43*100 -> 37.58542141
A46: 1/ Costarricenses inscritos(as) que pueden ejercer el voto en extranjero para designar los puestos de Presidencia y Vicepresidencias, así como en consultas populares de orden nacional, según el artículo 187 del Código Electoral.
A48: Fuente: Sección Padrón Electoral del Tribunal Supremo de Elecciones.

Sheet 2
A1: CUADRO 2
A2: COSTA RICA: ELECTORADO EN EL PADRÓN PARA LAS ELECCIONES DE
A3: FEBRERO 2014 Y EN EL PADRÓN AL 31 DE DICIEMBRE 2014
A4: POR SEXO, SEGÚN PROVINCIA Y CANTÓN
A6: Provincia y cantón | B6: Padrón Nacional Electoral
B7: Febrero 2014 | F7: Diciembre 2014
B8: Total | C8: Hombres | D8: Mujeres | F8: Total | G8: Hombres | H8: Mujeres
A9: Costa Rica | B9: =SUM(B10:B17) -> 3078321 | C9: =SUM(C10:C17) -> 1535869 | D9: =SUM(D10:D17) -> 1542452 | E9: =E18+E39+E55+E64+E75+E87+E99 -> 0 | F9: =F18+F39+F55+F64+F75+F87+F99+F106 -> 3137855 | G9: =G18+G39+G55+G64+G75+G87+G99+G106 -> 1566434 | H9: =H18+H39+H55+H64+H75+H87+H99+H106 -> 1571421
A10: San José | B10: =B18 -> 1063061 | C10: 518312 | D10: 544749 | E10: 0 | F10: 1074330 | G10: 524036 | H10: 550294
A11: Alajuela | B11: =B39 -> 577493 | C11: 291277 | D11: 286216 | E11: 0 | F11: 590908 | G11: 298378 | H11: 292530
A12: Cartago | B12: =B55 -> 359985 | C12: 179449 | D12: 180536 | E12: 0 | F12: 366959 | G12: 183024 | H12: 183935
A13: Heredia | B13: =B64 -> 306901 | C13: 151098 | D13: 155803 | E13: 0 | F13: 313241 | G13: 154242 | H13: 158999
A14: Guanacaste | B14: =B75 -> 221688 | C14: 112201 | D14: 109487 | E14: 0 | F14: 226132 | G14: 114492 | H14: 111640
A15: Puntarenas | B15: =B87 -> 287254 | C15: 147881 | D15: 139373 | E15: 0 | F15: 293006 | G15: 150676 | H15: 142330
A16: Limón | B16: =B99 -> 249285 | C16: 129143 | D16: 120142 | E16: 0 | F16: 255658 | G16: 132421 | H16: 123237
A17: En el extranjero 1/ | B17: =B106 -> 12654 | C17: =C106 -> 6508 | D17: =D106 -> 6146 | F17: =F106 -> 17621 | G17: =G106 -> 9165 | H17: =H106 -> 8456
A18: San José | B18: =SUM(C18:D18) -> 1063061 | C18: =SUM(C19:C38) -> 518312 | D18: =SUM(D19:D38) -> 544749 | F18: =SUM(F19:F38) -> 1074330 | G18: =SUM(G19:G38) -> 524036 | H18: =SUM(H19:H38) -> 550294
A19: San José | B19: =+C19+D19 -> 228847 | C19: 110114 | D19: 118733 | F19: =SUM(G19:H19) -> 229372 | G19: 110719 | H19: 118653
A20: Escazú | B20: 43354 | C20: 21195 | D20: 22159 | F20: 44078 | G20: 21552 | H20: 22526
A21: Desamparados | B21: 152242 | C21: 74550 | D21: 77692 | F21: 154570 | G21: 75795 | H21: 78775
A22: Puriscal | B22: 26459 | C22: 13322 | D22: 13137 | F22: 26981 | G22: 13575 | H22: 13406
A23: Tarrazú | B23: 11458 | C23: 5814 | D23: 5644 | F23: 11644 | G23: 5891 | H23: 5753
A24: Aserrí | B24: 40321 | C24: 20123 | D24: 20198 | F24: 41065 | G24: 20476 | H24: 20589
A25: Mora | B25: 19190 | C25: 9521 | D25: 9669 | F25: 19673 | G25: 9729 | H25: 9944
A26: Goicoechea | B26: 87701 | C26: 41925 | D26: 45776 | F26: 87927 | G26: 42112 | H26: 45815
A27: Santa Ana | B27: 31041 | C27: 15246 | D27: 15795 | F27: 31944 | G27: 15649 | H27: 16295
A28: Alajuelita | B28: 47597 | C28: 23554 | D28: 24043 | F28: 48443 | G28: 23970 | H28: 24473
A29: Vázquez de Coronado | B29: 49673 | C29: 24016 | D29: 25657 | F29: 50723 | G29: 24507 | H29: 26216
A30: Acosta | B30: 15551 | C30: 8044 | D30: 7507 | F30: 15795 | G30: 8125 | H30: 7670
A31: Tibás | B31: 55540 | C31: 26143 | D31: 29397 | F31: 55495 | G31: 26128 | H31: 29367
A32: Moravia | B32: 42357 | C32: 20301 | D32: 22056 | F32: 42752 | G32: 20515 | H32: 22237
A33: Montes de Oca | B33: 41489 | C33: 19500 | D33: 21989 | F33: 41489 | G33: 19513 | H33: 21976
A34: Turrubares | B34: 4375 | C34: 2280 | D34: 2095 | F34: 4389 | G34: 2272 | H34: 2117
A35: Dota | B35: 5193 | C35: 2610 | D35: 2583 | F35: 5250 | G35: 2628 | H35: 2622
A36: Curridabat | B36: 46270 | C36: 22273 | D36: 23997 | F36: 46764 | G36: 22471 | H36: 24293
A37: Pérez Zeledón | B37: 105670 | C37: 53322 | D37: 52348 | F37: 107142 | G37: 53897 | H37: 53245
A38: León Cortés | B38: 8733 | C38: 4459 | D38: 4274 | F38: 8834 | G38: 4512 | H38: 4322
A39: Alajuela | B39: =SUM(B40:B54) -> 577493 | C39: =SUM(C40:C54) -> 291277 | D39: =SUM(D40:D54) -> 286216 | F39: 590908 | G39: =SUM(G40:G54) -> 298378 | H39: =SUM(H40:H54) -> 292530
A40: Alajuela | B40: =+C40+D40 -> 185688 | C40: 93494 | D40: 92194 | F40: 189664 | G40: 95625 | H40: 94039
A41: San Ramón | B41: 58067 | C41: 28929 | D41: 29138 | F41: 59465 | G41: 29674 | H41: 29791
A42: Grecia | B42: 55007 | C42: 27426 | D42: 27581 | F42: 56020 | G42: 27954 | H42: 28066
A43: San Mateo | B43: 4044 | C43: 2100 | D43: 1944 | F43: 4113 | G43: 2139 | H43: 1974
A44: Atenas | B44: 18923 | C44: 9486 | D44: 9437 | F44: 19235 | G44: 9655 | H44: 9580
A45: Naranjo | B45: 29894 | C45: 14815 | D45: 15079 | F45: 30268 | G45: 15011 | H45: 15257
A46: Palmares | B46: 27132 | C46: 13436 | D46: 13696 | F46: 27658 | G46: 13721 | H46: 13937
A47: Poás | B47: 19747 | C47: 9940 | D47: 9807 | F47: 20286 | G47: 10220 | H47: 10066
A48: Orotina | B48: 14116 | C48: 7035 | D48: 7081 | F48: 14471 | G48: 7227 | H48: 7244
A49: San Carlos | B49: 97702 | C49: 49938 | D49: 47764 | F49: 100506 | G49: 51389 | H49: 49117
A50: Zarcero | B50: 8490 | C50: 4259 | D50: 4231 | F50: 8593 | G50: 4305 | H50: 4288
A51: Valverde Vega | B51: 13710 | C51: 6818 | D51: 6892 | F51: 13886 | G51: 6914 | H51: 6972
A52: Upala | B52: 24597 | C52: 12821 | D52: 11776 | F52: 25690 | G52: 13379 | H52: 12311
A53: Los Chiles | B53: 10457 | C53: 5621 | D53: 4836 | F53: 10852 | G53: 5864 | H53: 4988
A54: Guatuso | B54: 9919 | C54: 5159 | D54: 4760 | F54: 10201 | G54: 5301 | H54: 4900
A55: Cartago | B55: =SUM(B56:B63) -> 359985 | C55: =SUM(C56:C63) -> 179449 | D55: =SUM(D56:D63) -> 180536 | F55: 366959 | G55: =SUM(G56:G63) -> 183024 | H55: =SUM(H56:H63) -> 183935
A56: Cartago | B56: =+C56+D56 -> 113463 | C56: 56296 | D56: 57167 | F56: 115377 | G56: 57345 | H56: 58032
A57: Paraíso | B57: 43000 | C57: 21389 | D57: 21611 | F57: 43897 | G57: 21877 | H57: 22020
A58: La Unión | B58: 64441 | C58: 31956 | D58: 32485 | F58: 66029 | G58: 32685 | H58: 33344
A59: Jiménez | B59: 11308 | C59: 5836 | D59: 5472 | F59: 11435 | G59: 5914 | H59: 5521
A60: Turrialba | B60: 54654 | C60: 27475 | D60: 27179 | F60: 55132 | G60: 27699 | H60: 27433
A61: Alvarado | B61: 9484 | C61: 4788 | D61: 4696 | F61: 9728 | G61: 4893 | H61: 4835
A62: Oreamuno | B62: 33361 | C62: 16365 | D62: 16996 | F62: 34221 | G62: 16794 | H62: 17427
A63: El Guarco | B63: 30274 | C63: 15344 | D63: 14930 | F63: 31140 | G63: 15817 | H63: 15323
A64: Heredia | B64: =SUM(B65:B74) -> 306901 | C64: =SUM(C65:C74) -> 151098 | D64: =SUM(D65:D74) -> 155803 | F64: =SUM(G64:H64) -> 313241 | G64: =SUM(G65:G74) -> 154242 | H64: =SUM(H65:H74) -> 158999
A65: Heredia | B65: =+C65+D65 -> 90600 | C65: 43399 | D65: 47201 | F65: 92008 | G65: 44060 | H65: 47948
A66: Barva | B66: 30088 | C66: 14747 | D66: 15341 | F66: 30777 | G66: 15100 | H66: 15677
A67: Santo Domingo | B67: 32559 | C67: 16038 | D67: 16521 | F67: 32971 | G67: 16269 | H67: 16702
A68: Santa Bárbara | B68: 24726 | C68: 12278 | D68: 12448 | F68: 25220 | G68: 12549 | H68: 12671
A69: San Rafael | B69: 32186 | C69: 15986 | D69: 16200 | F69: 32827 | G69: 16329 | H69: 16498
A70: San Isidro | B70: 14503 | C70: 7235 | D70: 7268 | F70: 14858 | G70: 7435 | H70: 7423
A71: Belén | B71: 17266 | C71: 8510 | D71: 8756 | F71: 17686 | G71: 8718 | H71: 8968
A72: Flores | B72: 15087 | C72: 7390 | D72: 7697 | F72: 15530 | G72: 7586 | H72: 7944
A73: San Pablo | B73: 20119 | C73: 9754 | D73: 10365 | F73: 20572 | G73: 9960 | H73: 10612
A74: Sarapiquí | B74: 29767 | C74: 15761 | D74: 14006 | F74: 30792 | G74: 16236 | H74: 14556
A75: Guanacaste | B75: =SUM(B76:B86) -> 221688 | C75: =SUM(C76:C86) -> 112201 | D75: =SUM(D76:D86) -> 109487 | F75: 226132 | G75: =SUM(G76:G86) -> 114492 | H75: =SUM(H76:H86) -> 111640
A76: Liberia | B76: =+C76+D76 -> 41245 | C76: 20723 | D76: 20522 | F76: 42260 | G76: 21223 | H76: 21037
A77: Nicoya | B77: 38300 | C77: 19245 | D77: 19055 | F77: 38781 | G77: 19505 | H77: 19276
A78: Santa Cruz | B78: 37832 | C78: 19323 | D78: 18509 | F78: 38662 | G78: 19718 | H78: 18944
A79: Bagaces | B79: 12446 | C79: 6320 | D79: 6126 | F79: 12710 | G79: 6450 | H79: 6260
A80: Carrillo | B80: 22180 | C80: 11268 | D80: 10912 | F80: 22699 | G80: 11541 | H80: 11158
A81: Cañas | B81: 18440 | C81: 9272 | D81: 9168 | F81: 18777 | G81: 9451 | H81: 9326
A82: Abangares | B82: 12801 | C82: 6492 | D82: 6309 | F82: 12921 | G82: 6575 | H82: 6346
A83: Tilarán | B83: 14132 | C83: 7079 | D83: 7053 | F83: 14240 | G83: 7152 | H83: 7088
A84: Nandayure | B84: 7979 | C84: 4134 | D84: 3845 | F84: 8107 | G84: 4204 | H84: 3903
A85: La Cruz | B85: 10846 | C85: 5518 | D85: 5328 | F85: 11321 | G85: 5757 | H85: 5564
A86: Hojancha | B86: 5487 | C86: 2827 | D86: 2660 | F86: 5654 | G86: 2916 | H86: 2738
A87: Puntarenas | B87: =SUM(B88:B98) -> 287254 | C87: =SUM(C88:C98) -> 147881 | D87: =SUM(D88:D98) -> 139373 | F87: 293006 | G87: =SUM(G88:G98) -> 150676 | H87: =SUM(H88:H98) -> 142330
A88: Puntarenas | B88: =+C88+D88 -> 82240 | C88: 42269 | D88: 39971 | F88: 83228 | G88: 42699 | H88: 40529
A89: Esparza | B89: 20599 | C89: 10214 | D89: 10385 | F89: 21102 | G89: 10495 | H89: 10607
A90: Buenos Aires | B90: 29985 | C90: 15711 | D90: 14274 | F90: 30487 | G90: 15913 | H90: 14574
A91: Montes de Oro | B91: 9616 | C91: 4807 | D91: 4809 | F91: 9755 | G91: 4891 | H91: 4864
A92: Osa | B92: 20090 | C92: 10649 | D92: 9441 | F92: 20678 | G92: 10944 | H92: 9734
A93: Aguirre | B93: 18025 | C93: 9561 | D93: 8464 | F93: 18348 | G93: 9722 | H93: 8626
A94: Golfito | B94: 27210 | C94: 14223 | D94: 12987 | F94: 27962 | G94: 14560 | H94: 13402
A95: Coto Brus | B95: 27667 | C95: 13980 | D95: 13687 | F95: 28107 | G95: 14197 | H95: 13910
A96: Parrita | B96: 10844 | C96: 5604 | D96: 5240 | F96: 11051 | G96: 5720 | H96: 5331
A97: Corredores | B97: 31122 | C97: 15640 | D97: 15482 | F97: 32070 | G97: 16136 | H97: 15934
A98: Garabito | B98: 9856 | C98: 5223 | D98: 4633 | F98: 10218 | G98: 5399 | H98: 4819
A99: Limón | B99: =SUM(B100:B105) -> 249285 | C99: =SUM(C100:C105) -> 129143 | D99: =SUM(D100:D105) -> 120142 | F99: 255658 | G99: =SUM(G100:G105) -> 132421 | H99: =SUM(H100:H105) -> 123237
A100: Limón | B100: =+C100+D100 -> 64961 | C100: 32762 | D100: 32199 | F100: 65680 | G100: 33062 | H100: 32618
A101: Pococí | B101: 83344 | C101: 43586 | D101: 39758 | F101: 85873 | G101: 44931 | H101: 40942
A102: Siquirres | B102: 37389 | C102: 19658 | D102: 17731 | F102: 38405 | G102: 20204 | H102: 18201
A103: Talamanca | B103: 17572 | C103: 9254 | D103: 8318 | F103: 18449 | G103: 9681 | H103: 8768
A104: Matina | B104: 19837 | C104: 10370 | D104: 9467 | F104: 20317 | G104: 10615 | H104: 9702
A105: Guácimo | B105: 26182 | C105: 13513 | D105: 12669 | F105: 26934 | G105: 13928 | H105: 13006
A106: En el extranjero 1/ | B106: =SUM(C106:D106) -> 12654 | C106: 6508 | D106: 6146 | F106: =SUM(G106:H106) -> 17621 | G106: 9165 | H106: 8456
A109: 1/ Costarricenses inscritos(as) que pueden ejercer el voto en extranjero para designar los puestos de Presidencia y Vicepresidencias, así como en consultas populares de orden nacional, según el artículo 187 del Código Electoral.
A110: Fuente: Sección Padrón Electoral del Tribunal Supremo de Elecciones.

Sheet 3
A1: CUADRO 3
A2: COSTA RICA: ELECTORADO POR PROVINCIA, SEGÚN SEXO Y
A3: GRUPO DE EDAD 1/, AL 31 DE DICIEMBRE 2014
A5: Sexo y grupo de edad | B5: Total | C5: San José | D5: Alajuela | E5: Cartago | F5: Heredia | G5: Guanacaste | H5: Puntarenas | I5: Limón | J5: En el extranjero 2/
A7: Costa Rica | B7: =B24+B41 -> 3137855 | C7: 1074330 | D7: 590908 | E7: 366959 | F7: 313241 | G7: 226132 | H7: 293006 | I7: 255658 | J7: 17621
A8: 16 - 19 | B8: 151970 | C8: =C25+C42 -> 47507 | D8: 29805 | E8: 17611 | F8: 14333 | G8: 11646 | H8: 15664 | I8: 14951 | J8: 453
A9: 20 - 24 | B9: 391015 | C9: 125865 | D9: 75787 | E9: 46633 | F9: 36924 | G9: 29133 | H9: 38556 | I9: 36504 | J9: 1613
A10: 25 - 29 | B10: 397898 | C10: 132178 | D10: 77086 | E10: 47540 | F10: 38508 | G10: 28436 | H10: 37926 | I10: 34537 | J10: 1687
A11: 30 - 34 | B11: 353117 | C11: 120920 | D11: 65283 | E11: 40727 | F11: 36431 | G11: 25095 | H11: 33305 | I11: 28763 | J11: 2593
A12: 35 - 39 | B12: 302551 | C12: 102716 | D12: 55155 | E12: 35836 | F12: 31760 | G12: 21775 | H12: 28286 | I12: 24615 | J12: 2408
A13: 40 - 44 | B13: 270256 | C13: 89454 | D13: 49771 | E13: 32774 | F13: 27742 | G13: 19363 | H13: 25919 | I13: 23056 | J13: 2177
A14: 45 - 49 | B14: 275158 | C14: 92309 | D14: 52481 | E14: 33278 | F14: 27534 | G14: 19682 | H14: 25730 | I14: 22191 | J14: 1953
A15: 50 - 54 | B15: 262094 | C15: 91509 | D15: 49877 | E15: 30744 | F15: 26616 | G15: 18245 | H15: 23499 | I15: 19936 | J15: 1668
A16: 55 - 59 | B16: 217172 | C16: 78093 | D16: 40205 | E16: 24824 | F16: 22313 | G16: 15042 | H16: 19156 | I16: 16358 | J16: 1181
A17: 60 - 64 | B17: 166200 | C17: 61366 | D17: 29961 | E17: 18421 | F17: 17209 | G17: 11585 | H17: 14600 | I17: 12258 | J17: 800
A18: 65 - 69 | B18: 120272 | C18: 45305 | D18: 22007 | E18: 13086 | F18: 11981 | G18: 8591 | H18: 10482 | I18: 8341 | J18: 479
A19: 70 - 74 | B19: 87035 | C19: 32017 | D19: 16786 | E19: 9900 | F19: 8335 | G19: 6291 | H19: 7728 | I19: 5697 | J19: 281
A20: 75 - 79 | B20: 63095 | C20: 23724 | D20: 11955 | E20: 7045 | F20: 5979 | G20: 4737 | H20: 5550 | I20: 3946 | J20: 159
A21: 80 - 84 | B21: 41899 | C21: 16177 | D21: 7746 | E21: 4609 | F21: 3980 | G21: 3322 | H21: 3578 | I21: 2391 | J21: 96
A22: 85 y más | B22: 38123 | C22: 15190 | D22: 7003 | E22: 3931 | F22: 3596 | G22: 3189 | H22: 3027 | I22: 2114 | J22: 73
A24: Hombres | B24: =SUM(C24:J24) -> 1566434 | C24: =SUM(C25:C39) -> 524036 | D24: 298378 | E24: 183024 | F24: 154242 | G24: 114492 | H24: 150676 | I24: 132421 | J24: =SUM(J25:J39) -> 9165
A25: 16 - 19 | B25: =SUM(C25:J25) -> 77267 | C25: 23885 | D25: 15202 | E25: 9033 | F25: 7258 | G25: 6009 | H25: 8039 | I25: 7606 | J25: 235
A26: 20 - 24 | B26: =SUM(C26:J26) -> 200125 | C26: 64092 | D26: 39185 | E26: 23932 | F26: 18972 | G26: 14795 | H26: 19584 | I26: 18786 | J26: 779
A27: 25 - 29 | B27: 202816 | C27: 66747 | D27: 39968 | E27: 24306 | F27: 19481 | G27: 14448 | H27: 19390 | I27: 17534 | J27: 942
A28: 30 - 34 | B28: 178744 | C28: 60984 | D28: 33434 | E28: 20601 | F28: 18221 | G28: 12759 | H28: 16873 | I28: 14414 | J28: 1458
A29: 35 - 39 | B29: 152514 | C29: 51674 | D29: 28106 | E29: 17851 | F29: 15893 | G29: 10915 | H29: 14243 | I29: 12492 | J29: 1340
A30: 40 - 44 | B30: 135663 | C30: 44437 | D30: 24962 | E30: 16235 | F30: 13852 | G30: 9764 | H30: 13319 | I30: 11905 | J30: 1189
A31: 45 - 49 | B31: 137530 | C31: 45387 | D31: 26198 | E31: 16533 | F31: 13429 | G31: 10063 | H31: 13291 | I31: 11557 | J31: 1072
A32: 50 - 54 | B32: 130070 | C32: 44177 | D32: 24891 | E32: 15211 | F32: 13034 | G32: 9331 | H32: 12191 | I32: 10404 | J32: 831
A33: 55 - 59 | B33: 107029 | C33: 36998 | D33: 20139 | E33: 12210 | F33: 10723 | G33: 7609 | H33: 10016 | I33: 8807 | J33: 527
A34: 60 - 64 | B34: 81145 | C34: 28322 | D34: 15056 | E34: 8895 | F34: 8171 | G34: 5939 | H34: 7672 | I34: 6722 | J34: 368
A35: 65 - 69 | B35: 58124 | C35: 20810 | D35: 10753 | E35: 6337 | F35: 5647 | G35: 4209 | H35: 5568 | I35: 4583 | J35: 217
A36: 70 - 74 | B36: 41444 | C36: 14305 | D36: 8139 | E36: 4760 | F36: 3801 | G36: 3171 | H36: 4015 | I36: 3144 | J36: 109
A37: 75 - 79 | B37: 29334 | C37: 10071 | D37: 5699 | E37: 3327 | F37: 2696 | G37: 2355 | H37: 3003 | I37: 2130 | J37: 53
A38: 80 - 84 | B38: 18769 | C38: 6615 | D38: 3599 | E38: 2134 | F38: 1656 | G38: 1640 | H38: 1840 | I38: 1262 | J38: 23
A39: 85 y más | B39: 15860 | C39: 5532 | D39: 3047 | E39: 1659 | F39: 1408 | G39: 1485 | H39: 1632 | I39: 1075 | J39: 22
A41: Mujeres | B41: =SUM(C41:J41) -> 1571421 | C41: =SUM(C42:C56) -> 550294 | D41: =SUM(D42:D56) -> 292530 | E41: 183935 | F41: 158999 | G41: 111640 | H41: 142330 | I41: 123237 | J41: =SUM(J42:J56) -> 8456
A42: 16 - 19 | B42: =SUM(C42:J42) -> 74703 | C42: 23622 | D42: 14603 | E42: 8578 | F42: 7075 | G42: 5637 | H42: 7625 | I42: 7345 | J42: 218
A43: 20 - 24 | B43: =SUM(C43:J43) -> 190890 | C43: 61773 | D43: 36602 | E43: 22701 | F43: 17952 | G43: 14338 | H43: 18972 | I43: 17718 | J43: 834
A44: 25 - 29 | B44: 195082 | C44: 65431 | D44: 37118 | E44: 23234 | F44: 19027 | G44: 13988 | H44: 18536 | I44: 17003 | J44: 745
A45: 30 - 34 | B45: 174373 | C45: 59936 | D45: 31849 | E45: 20126 | F45: 18210 | G45: 12336 | H45: 16432 | I45: 14349 | J45: 1135
A46: 35 - 39 | B46: 150037 | C46: 51042 | D46: 27049 | E46: 17985 | F46: 15867 | G46: 10860 | H46: 14043 | I46: 12123 | J46: 1068
A47: 40 - 44 | B47: 134593 | C47: 45017 | D47: 24809 | E47: 16539 | F47: 13890 | G47: 9599 | H47: 12600 | I47: 11151 | J47: 988
A48: 45 - 49 | B48: 137628 | C48: 46922 | D48: 26283 | E48: 16745 | F48: 14105 | G48: 9619 | H48: 12439 | I48: 10634 | J48: 881
A49: 50 - 54 | B49: 132024 | C49: 47332 | D49: 24986 | E49: 15533 | F49: 13582 | G49: 8914 | H49: 11308 | I49: 9532 | J49: 837
A50: 55 - 59 | B50: =SUM(C50:J50) -> 110143 | C50: 41095 | D50: 20066 | E50: 12614 | F50: 11590 | G50: 7433 | H50: 9140 | I50: 7551 | J50: 654
A51: 60 - 64 | B51: 85055 | C51: 33044 | D51: 14905 | E51: 9526 | F51: 9038 | G51: 5646 | H51: 6928 | I51: 5536 | J51: 432
A52: 65 - 69 | B52: 62148 | C52: 24495 | D52: 11254 | E52: 6749 | F52: 6334 | G52: 4382 | H52: 4914 | I52: 3758 | J52: 262
A53: 70 - 74 | B53: 45591 | C53: 17712 | D53: 8647 | E53: 5140 | F53: 4534 | G53: 3120 | H53: 3713 | I53: 2553 | J53: 172
A54: 75 - 79 | B54: 33761 | C54: 13653 | D54: 6256 | E54: 3718 | F54: 3283 | G54: 2382 | H54: 2547 | I54: 1816 | J54: 106
A55: 80 - 84 | B55: 23130 | C55: 9562 | D55: 4147 | E55: 2475 | F55: 2324 | G55: 1682 | H55: 1738 | I55: 1129 | J55: 73
A56: 85 y más | B56: =SUM(C56:J56) -> 22263 | C56: 9658 | D56: 3956 | E56: 2272 | F56: 2188 | G56: 1704 | H56: 1395 | I56: 1039 | J56: 51
A59: 1/ Incluye las personas menores que tramitarán su cédula y cumplirán 18 años hasta el 7 de febrero de 2016. Según el artículo 76 de la Ley 3504: "Ley Orgánica del Tribunal Supremo de Elecciones y del Registro Civil".
A60: 2/ Costarricenses inscritos(as) que pueden ejercer el voto en extranjero para designar los puestos de Presidencia y Vicepresidencias, así como en consultas populares de orden nacional, según el artículo 187 del Código Electoral.
A61: Fuente: Sección Padrón Electoral del Tribunal Supremo de Elecciones.

Sheet G1
I2: GRÁFICO 1
A3: POR MES, SEGÚN PROVINCIA Y SEXO, AL 30 DE DICIEMBRE DE 2014 | I3: COSTA RICA: PORCENTAJE DEL ELECTORADO, POR SEXO Y GRUPO DE EDAD
I4: AL 31 DE DICIEMBRE 2014
A6: GRUPOS DE EDAD | B6: ELECTORES | F6: PORCENTAJE
B7: Total | C7: Hombres | D7: Mujeres | E7: Sin lugar | F7: Hombres | G7: Mujeres
B9: 3137855 | C9: 1566434 | D9: 1571421
A11: Menos de 20 | B11: 151970 | C11: 77267 | D11: 74703 | F11: -4.932668724 | G11: 4.768984841
A12: 20 a 24 | B12: 391015 | C12: 200125 | D12: 190890 | F12: -12.77583352 | G12: 12.18627788
A13: 25 a 29 | B13: 397898 | C13: 202816 | D13: 195082 | F13: -12.94762499 | G13: 12.45389209
A14: 30 a 34 | B14: 353117 | C14: 178744 | D14: 174373 | F14: -11.41088613 | G14: 11.13184469
A15: 35 a 39 | B15: 302551 | C15: 152514 | D15: 150037 | F15: -9.736382127 | G15: 9.57825226
A16: 40 a 44 | B16: 270256 | C16: 135663 | D16: 134593 | F16: -8.660626621 | G16: 8.592318604
A17: 45 a 49 | B17: 275158 | C17: 137530 | D17: 137628 | F17: -8.779814534 | G17: 8.786070782
A18: 50 a 54 | B18: 262094 | C18: 130070 | D18: 132024 | F18: -8.303573595 | G18: 8.428315524
A19: 55 a 59 | B19: 217172 | C19: 107029 | D19: 110143 | F19: -6.83265302 | G19: 7.0314485
A20: 60 a 64 | B20: 166200 | C20: 81145 | D20: 85055 | F20: -5.180237405 | G20: 5.429848944
A21: 65 a 69 | B21: 120272 | C21: 58124 | D21: 62148 | F21: -3.710593616 | G21: 3.96748283
A22: 70 a 74 | B22: 87035 | C22: 41444 | D22: 45591 | F22: -2.645754625 | G22: 2.910496069
A23: 75 a 79 | B23: 63095 | C23: 29334 | D23: 33761 | F23: -1.872661089 | G23: 2.155277528
A24: 80 a 84 | B24: 41899 | C24: 18769 | D24: 23130 | F24: -1.198199222 | G24: 1.47660227
A25: 85 y más | B25: 38123 | C25: 15860 | D25: 22263 | F25: -1.012490791 | G25: 1.421253624
A28: Al pasar a imprenta y web, se debe pegar como valores para
A29: romper el vinculo con la tabla de datos
I31: Fuente: Cuadro 3.

Sheet 4
A1: CUADRO 4
A2: COSTA RICA: ELECTORADO EN EL PADRÓN INSCRITO EN EL EXTRANJERO1/
A3: POR SEXO, SEGÚN CONTINENTE Y PAÍS
A4: AL 31 DE DICIEMBRE 2014
A6: Continente y país | B6: Total | D6: Hombres | F6: Mujeres
B7: Absoluto | C7: % | D7: Absoluto | E7: % | F7: Absoluto | G7: %
A9: Total | B9: =B11+B36+B49+B58 -> 17621 | C9: =B9/B$9*100 -> 100 | D9: =D11+D36+D49+D58 -> 9165 | E9: =D9/D$9*100 -> 100 | F9: =F11+F36+F49+F58 -> 8456 | G9: =F9/F$9*100 -> 100
A11: América | B11: =D11+F11 -> 15671 | C11: =B11/B$9*100 -> 88.9336587 | D11: =SUM(D12:D34) -> 8251 | E11: =D11/D$9*100 -> 90.02727769 | F11: =SUM(F12:F34) -> 7420 | G11: =F11/F$9*100 -> 87.74834437
A12: Estados Unidos | B12: 12269 | C12: =B12/B$9*100 -> 69.62714942 | D12: 6595 | E12: =D12/D$9*100 -> 71.95853792 | F12: 5674 | G12: =F12/F$9*100 -> 67.10028382
A13: Canadá | B13: 644 | C13: 3.654730152 | D13: 358 | E13: 3.906164757 | F13: 286 | G13: 3.382213813
A14: México | B14: 539 | C14: 3.058850236 | D14: 227 | E14: 2.476813966 | F14: 312 | G14: 3.689687796
A15: Panamá | B15: 314 | C15: 1.781964701 | D15: 150 | E15: 1.636661211 | F15: 164 | G15: 1.939451277
A16: Guatemala | B16: 266 | C16: 1.509562454 | D16: 115 | E16: 1.254773595 | F16: 151 | G16: 1.785714286
A17: Venezuela | B17: 245 | C17: 1.390386471 | D17: 104 | E17: 1.134751773 | F17: 141 | G17: 1.667455061
A18: El Salvador | B18: 193 | C18: 1.095284036 | D18: 88 | E18: 0.9601745772 | F18: 105 | G18: 1.241721854
A19: Nicaragua | B19: 183 | C19: 1.038533568 | D19: 90 | E19: 0.9819967267 | F19: 93 | G19: 1.099810785
A20: Colombia | B20: 179 | C20: 1.015833381 | D20: 79 | E20: 0.8619749045 | F20: 100 | G20: 1.182592242
A21: Honduras | B21: 162 | C21: 0.9193575847 | D21: 88 | E21: 0.9601745772 | F21: 74 | G21: 0.8751182592
A22: Argentina | B22: 148 | C22: 0.8399069292 | D22: 81 | E22: 0.883797054 | F22: 67 | G22: 0.7923368023
A23: Chile | B23: 131 | C23: 0.7434311333 | D23: 67 | E23: 0.7310420076 | F23: 64 | G23: 0.756859035
A24: Perú | B24: 101 | C24: 0.5731797287 | D24: 55 | E24: 0.6001091107 | F24: 46 | G24: 0.5439924314
A25: República Dominicana | B25: 91 | C25: 0.5164292605 | D25: 50 | E25: 0.545553737 | F25: 41 | G25: 0.4848628193
A26: Ecuador | B26: 63 | C26: 0.3575279496 | D26: 27 | E26: 0.294599018 | F26: 36 | G26: 0.4257332072
A27: Brasil | B27: 39 | C27: 0.2213268259 | D27: 23 | E27: 0.250954719 | F27: 16 | G27: 0.1892147588
A28: Bolivia | B28: 32 | C28: 0.1816014982 | D28: 16 | E28: 0.1745771959 | F28: 16 | G28: 0.1892147588
A29: Cuba | B29: 28 | C29: 0.1589013109 | D29: 16 | E29: 0.1745771959 | F29: 12 | G29: 0.1419110691
A30: Uruguay | B30: 17 | C30: 0.09647579593 | D30: 10 | E30: 0.1091107474 | F30: 7 | G30: 0.08278145695
A31: Paraguay | B31: 16 | C31: 0.09080074911 | D31: 9 | E31: 0.09819967267 | F31: 7 | G31: 0.08278145695
A32: Belice | B32: 5 | C32: 0.0283752341 | D32: 1 | E32: 0.01091107474 | F32: 4 | G32: 0.04730368969
A33: Trinidad y Tobago | B33: 4 | C33: 0.02270018728 | D33: 2 | E33: 0.02182214948 | F33: 2 | G33: 0.02365184484
A34: Jamaica | B34: 2 | C34: 0.01135009364 | D34: 0 | E34: 0 | F34: 2 | G34: 0.02365184484
A36: Europa | B36: =D36+F36 -> 1631 | C36: =B36/B$9*100 -> 9.256001362 | D36: =SUM(D37:D47) -> 760 | E36: =D36/D$9*100 -> 8.292416803 | F36: =SUM(F37:F47) -> 871 | G36: =F36/F$9*100 -> 10.30037843
A37: España | B37: =D37+F37 -> 438 | C37: =B37/B$9*100 -> 2.485670507 | D37: 229 | E37: =D37/D$9*100 -> 2.498636116 | F37: 209 | G37: =F37/F$9*100 -> 2.471617786
A38: Alemania | B38: 214 | C38: 1.214460019 | D38: 117 | E38: 1.276595745 | F38: 97 | G38: 1.147114475
A39: Francia | B39: 210 | C39: 1.191759832 | D39: 87 | E39: 0.9492635025 | F39: 123 | G39: 1.454588458
A40: Suiza | B40: 192 | C40: 1.089608989 | D40: 75 | E40: 0.8183306056 | F40: 117 | G40: 1.383632923
A41: Italia | B41: 137 | C41: 0.7774814142 | D41: 51 | E41: 0.5564648118 | F41: 86 | G41: 1.017029328
A42: Reino Unido | B42: 127 | C42: 0.720730946 | D42: 49 | E42: 0.5346426623 | F42: 78 | G42: 0.9224219489
A43: Holanda | B43: 120 | C43: 0.6810056183 | D43: 49 | E43: 0.5346426623 | F43: 71 | G43: 0.839640492
A44: Bélgica | B44: 62 | C44: 0.3518529028 | D44: 30 | E44: 0.3273322422 | F44: 32 | G44: 0.3784295175
A45: Austria | B45: 58 | C45: 0.3291527155 | D45: 30 | E45: 0.3273322422 | F45: 28 | G45: 0.3311258278
A46: Noruega | B46: 46 | C46: 0.2610521537 | D46: 24 | E46: 0.2618657938 | F46: 22 | G46: 0.2601702933
A47: Rusia | B47: 27 | C47: 0.1532262641 | D47: 19 | E47: 0.2073104201 | F47: 8 | G47: 0.09460737938
A49: Asia | B49: =D49+F49 -> 254 | C49: =B49/B$9*100 -> 1.441461892 | D49: =SUM(D50:D56) -> 121 | E49: =D49/D$9*100 -> 1.320240044 | F49: =SUM(F50:F56) -> 133 | G49: =F49/F$9*100 -> 1.572847682
A50: China | B50: 79 | C50: 0.4483286987 | D50: 42 | E50: 0.4582651391 | F50: 37 | G50: 0.4375591296
A51: Israel | B51: 54 | C51: 0.3064525282 | D51: 18 | E51: 0.1963993453 | F51: 36 | G51: 0.4257332072
A52: Japón | B52: 40 | C52: 0.2270018728 | D52: 19 | E52: 0.2073104201 | F52: 21 | G52: 0.2483443709
A53: Singapur | B53: 31 | C53: 0.1759264514 | D53: 15 | E53: 0.1636661211 | F53: 16 | G53: 0.1892147588
A54: Corea | B54: 22 | C54: 0.12485103 | D54: 12 | E54: 0.1309328969 | F54: 10 | G54: 0.1182592242
A55: Qatar | B55: 21 | C55: 0.1191759832 | D55: 9 | E55: 0.09819967267 | F55: 12 | G55: 0.1419110691
A56: India | B56: 7 | C56: 0.03972532773 | D56: 6 | E56: 0.06546644845 | F56: 1 | G56: 0.01182592242
A58: Oceanía | B58: =D58+F58 -> 65 | C58: =B58/B$9*100 -> 0.3688780432 | D58: =SUM(D59) -> 33 | E58: =D58/D$9*100 -> 0.3600654664 | F58: =SUM(F59) -> 32 | G58: =F58/F$9*100 -> 0.3784295175
A59: Australia | B59: =D59+F59 -> 65 | C59: =B59/B$9*100 -> 0.3688780432 | D59: 33 | E59: =D59/D$9*100 -> 0.3600654664 | F59: 32 | G59: =F59/F$9*100 -> 0.3784295175
A62: 1/ Costarricenses inscritos(as) que pueden ejercer el voto en extranjero para designar los puestos de Presidencia y Vicepresidencias, así como en consultas populares de orden nacional, según el artículo 187 del Código Electoral.
A63: Fuente: Sección Padrón Electoral del Tribunal Supremo de Elecciones.

Sheet 5
A1: CUADRO 5
A2: COSTA RICA: ELECTORADO NATURALIZADO, POR PAÍS DE ORIGEN
A3: SEGÚN SEXO Y GRUPO DE EDAD, AL 31 DE DICIEMBRE 2014 1/
A5: SEXO Y GRUPO DE EDAD | B5: País de origen
B6: Total | C6: Nicaragua | D6: Colombia | E6: El Salvador | F6: Cuba | G6: China | H6: Perú | I6: Panamá | J6: Resto de países
A8: Costa Rica | B8: =SUM(B9:B23) -> 52322 | C8: =SUM(C9:C23) -> 26737 | D8: 6147 | E8: 3504 | F8: 2257 | G8: 1846 | H8: 1630 | I8: 1438 | J8: =SUM(J9:J23) -> 8763
A9: 16 - 19 | B9: =SUM(C9:J9) -> 315 | C9: =+C26+C43 -> 116 | D9: =+D26+D43 -> 121 | E9: 4 | F9: 16 | G9: 6 | H9: 11 | I9: 1 | J9: 40
A10: 20 - 24 | B10: =SUM(C10:J10) -> 1113 | C10: =+C27+C44 -> 487 | D10: 314 | E10: 18 | F10: 93 | G10: 21 | H10: 30 | I10: 6 | J10: 144
A11: 25 - 29 | B11: 1849 | C11: 1032 | D11: 320 | E11: 21 | F11: 87 | G11: 64 | H11: 51 | I11: 18 | J11: 256
A12: 30 - 34 | B12: 4257 | C12: 2449 | D12: 728 | E12: 107 | F12: 115 | G12: 145 | H12: 146 | I12: 40 | J12: 527
A13: 35 - 39 | B13: 5898 | C13: 3021 | D13: 1005 | E13: 373 | F13: 202 | G13: 215 | H13: 199 | I13: 68 | J13: 815
A14: 40 - 44 | B14: 6722 | C14: 3400 | D14: 900 | E14: 456 | F14: 305 | G14: 261 | H14: 231 | I14: 152 | J14: 1017
A15: 45 - 49 | B15: 6713 | C15: 3364 | D15: 904 | E15: 439 | F15: 312 | G15: 207 | H15: 202 | I15: 191 | J15: 1094
A16: 50 - 54 | B16: 5662 | C16: 2613 | D16: 700 | E16: 451 | F16: 314 | G16: 181 | H16: 215 | I16: 199 | J16: 989
A17: 55 - 59 | B17: 4723 | C17: 2213 | D17: 449 | E17: 476 | F17: 226 | G17: 158 | H17: 193 | I17: 176 | J17: 832
A18: 60 - 64 | B18: 4122 | C18: 1894 | D18: 295 | E18: 428 | F18: 176 | G18: 160 | H18: 143 | I18: 154 | J18: 872
A19: 65 - 69 | B19: 3305 | C19: 1570 | D19: 191 | E19: 305 | F19: 131 | G19: 137 | H19: 109 | I19: 153 | J19: 709
A20: 70 - 74 | B20: 2484 | C20: 1322 | D20: 94 | E20: 186 | F20: 104 | G20: 112 | H20: 40 | I20: 99 | J20: 527
A21: 75 - 79 | B21: 1990 | C21: 1185 | D21: 65 | E21: 117 | F21: 70 | G21: 68 | H21: 34 | I21: 59 | J21: 392
A22: 80 - 84 | B22: 1501 | C22: 920 | D22: 33 | E22: 75 | F22: 43 | G22: 53 | H22: 15 | I22: 72 | J22: 290
A23: 85 y más | B23: 1668 | C23: 1151 | D23: 28 | E23: 48 | F23: 63 | G23: 58 | H23: 11 | I23: 50 | J23: 259
A25: Hombres | B25: =SUM(B26:B40) -> 23767 | C25: =SUM(C26:C40) -> 11304 | D25: =SUM(D26:D40) -> 2899 | E25: 1509 | F25: 1248 | G25: 989 | H25: 876 | I25: 620 | J25: 4322
A26: 16 - 19 | B26: =SUM(C26:J26) -> 173 | C26: 65 | D26: 69 | E26: 2 | F26: 8 | G26: 3 | H26: 1 | I26: 0 | J26: 25
A27: 20 - 24 | B27: =SUM(C27:J27) -> 548 | C27: 217 | D27: 164 | E27: 8 | F27: 60 | G27: 10 | H27: 15 | I27: 1 | J27: 73
A28: 25 - 29 | B28: 736 | C28: 372 | D28: 147 | E28: 8 | F28: 37 | G28: 35 | H28: 21 | I28: 5 | J28: 111
A29: 30 - 34 | B29: 1722 | C29: 896 | D29: 317 | E29: 53 | F29: 48 | G29: 91 | H29: 82 | I29: 11 | J29: 224
A30: 35 - 39 | B30: 2561 | C30: 1228 | D30: 446 | E30: 168 | F30: 99 | G30: 131 | H30: 98 | I30: 31 | J30: 360
A31: 40 - 44 | B31: 3072 | C31: 1484 | D31: 432 | E31: 206 | F31: 162 | G31: 148 | H31: 109 | I31: 68 | J31: 463
A32: 45 - 49 | B32: 3156 | C32: 1561 | D32: 417 | E32: 194 | F32: 182 | G32: 91 | H32: 105 | I32: 82 | J32: 524
A33: 50 - 54 | B33: 2507 | C33: 1015 | D33: 344 | E33: 190 | F33: 189 | G33: 95 | H33: 110 | I33: 91 | J33: 473
A34: 55 - 59 | B34: 1982 | C34: 780 | D34: 201 | E34: 171 | F34: 142 | G34: 86 | H34: 111 | I34: 79 | J34: 412
A35: 60 - 64 | B35: 1860 | C35: 752 | D35: 144 | E35: 170 | F35: 103 | G35: 89 | H35: 85 | I35: 57 | J35: 460
A36: 65 - 69 | B36: 1652 | C36: 718 | D36: 106 | E36: 137 | F36: 84 | G36: 65 | H36: 76 | I36: 62 | J36: 404
A37: 70 - 74 | B37: 1286 | C37: 654 | D37: 48 | E37: 90 | F37: 59 | G37: 57 | H37: 27 | I37: 47 | J37: 304
A38: 75 - 79 | B38: 974 | C38: 557 | D38: 41 | E38: 60 | F38: 35 | G38: 31 | H38: 19 | I38: 32 | J38: 199
A39: 80 - 84 | B39: 723 | C39: 425 | D39: 12 | E39: 35 | F39: 15 | G39: 33 | H39: 11 | I39: 28 | J39: 164
A40: 85 y más | B40: 815 | C40: 580 | D40: 11 | E40: 17 | F40: 25 | G40: 24 | H40: 6 | I40: 26 | J40: 126
A42: Mujeres | B42: =SUM(B43:B57) -> 28555 | C42: 15433 | D42: 3248 | E42: 1995 | F42: 1009 | G42: 857 | H42: 754 | I42: 818 | J42: 4441
A43: 16 - 19 | B43: =SUM(C43:J43) -> 142 | C43: 51 | D43: 52 | E43: 2 | F43: 8 | G43: 3 | H43: 10 | I43: 1 | J43: 15
A44: 20 - 24 | B44: =SUM(C44:J44) -> 565 | C44: 270 | D44: 150 | E44: 10 | F44: 33 | G44: 11 | H44: 15 | I44: 5 | J44: 71
A45: 25 - 29 | B45: 1113 | C45: 660 | D45: 173 | E45: 13 | F45: 50 | G45: 29 | H45: 30 | I45: 13 | J45: 145
A46: 30 - 34 | B46: 2535 | C46: 1553 | D46: 411 | E46: 54 | F46: 67 | G46: 54 | H46: 64 | I46: 29 | J46: 303
A47: 35 - 39 | B47: 3337 | C47: 1793 | D47: 559 | E47: 205 | F47: 103 | G47: 84 | H47: 101 | I47: 37 | J47: 455
A48: 40 - 44 | B48: 3650 | C48: 1916 | D48: 468 | E48: 250 | F48: 143 | G48: 113 | H48: 122 | I48: 84 | J48: 554
A49: 45 - 49 | B49: 3557 | C49: 1803 | D49: 487 | E49: 245 | F49: 130 | G49: 116 | H49: 97 | I49: 109 | J49: 570
A50: 50 - 54 | B50: 3155 | C50: 1598 | D50: 356 | E50: 261 | F50: 125 | G50: 86 | H50: 105 | I50: 108 | J50: 516
A51: 55 - 59 | B51: 2741 | C51: 1433 | D51: 248 | E51: 305 | F51: 84 | G51: 72 | H51: 82 | I51: 97 | J51: 420
A52: 60 - 64 | B52: 2262 | C52: 1142 | D52: 151 | E52: 258 | F52: 73 | G52: 71 | H52: 58 | I52: 97 | J52: 412
A53: 65 - 69 | B53: 1653 | C53: 852 | D53: 85 | E53: 168 | F53: 47 | G53: 72 | H53: 33 | I53: 91 | J53: 305
A54: 70 - 74 | B54: 1198 | C54: 668 | D54: 46 | E54: 96 | F54: 45 | G54: 55 | H54: 13 | I54: 52 | J54: 223
A55: 75 - 79 | B55: 1016 | C55: 628 | D55: 24 | E55: 57 | F55: 35 | G55: 37 | H55: 15 | I55: 27 | J55: 193
A56: 80 - 84 | B56: 778 | C56: 495 | D56: 21 | E56: 40 | F56: 28 | G56: 20 | H56: 4 | I56: 44 | J56: 126
A57: 85 y más | B57: 853 | C57: 571 | D57: 17 | E57: 31 | F57: 38 | G57: 34 | H57: 5 | I57: 24 | J57: 133
A60: 1/ Incluye las personas menores que tramitarán su cédula y cumplirán 18 años hasta el 7 de febrero de 2016. Según el artículo 76 de la Ley 3504: "Ley Orgánica del Tribunal Supremo de Elecciones y del Registro Civil".
A61: Fuente: Sección Padrón Electoral del Tribunal Supremo de Elecciones.

Sheet G2
A2: Costa Rica | B2: 3137855 | E2: GRÁFICO 2
A3: Resto de países | B3: 8763 | C3: 16.74821299 | E3: COSTA RICA: PORCENTAJE DEL ELECTORADO NATURALIZADO
A4: Panamá | B4: 1438 | C4: 2.748365888 | E4: POR PAÍS DE ORIGEN, AL 31 DE DICIEMBRE 2014
A5: Perú | B5: 1630 | C5: 3.115324338
A6: China | B6: 1846 | C6: 3.528152594
A7: Cuba | B7: 2257 | C7: 4.313673025
A8: El Salvador | B8: 3504 | C8: 6.696991705
A9: Colombia | B9: 6147 | C9: 11.74840411
A10: Nicaragua | B10: 26737 | C10: 51.10087535
B11: 52322
A13: Los datos se copian del cuadro respectivo
A14: ya que el total de cada país puede variar | C14: 0
A15: y por tanto la posición dentros del gráfico
C16: 0
C18: 0
C20: 0
C22: 0
C24: 0
C26: 0
C28: 0
C30: 0
E31: Fuente: Cuadro 5.

Sheet 6
A1: CUADRO 6
A2: COSTA RICA: MOVIMIENTOS AL PADRÓN NACIONAL ELECTORAL
A3: POR TIPO DE MOVIMIENTO, SEGÚN MES
A4: AL 31 DE DICIEMBRE 2014 1/
A6: Mes | B6: Padrón Nacional Electoral anterior | D6: Tipo de movimiento | O6: Padrón Nacional Electoral actual
D7: Inclusiones | I7: Exclusiones
D8: Cédulas Primera vez2/ | F8: Cédulas renovadas | I8: Defunción | K8: Cédulas vencidas | M8: Otras
A10: Enero | B10: 3078321 | D10: 0 | F10: 0 | I10: 0 | K10: 0 | M10: 0 | O10: 3078321
A11: Febrero | B11: 3078321 | D11: 0 | F11: 0 | I11: 0 | K11: 0 | M11: 0 | O11: 3078321
A12: Marzo | B12: 3078321 | D12: 0 | F12: 0 | I12: 0 | K12: 0 | M12: 0 | O12: 3078321
A13: Abril | B13: 3078321 | D13: 0 | F13: 0 | I13: 0 | K13: 0 | M13: 0 | O13: 3078321
A14: Mayo | B14: 3078321 | D14: 0 | F14: 0 | I14: 0 | K14: 0 | M14: 0 | O14: 3078321
A15: Junio | B15: 3078321 | D15: 0 | F15: 0 | I15: 0 | K15: 0 | M15: 0 | O15: 3078321
A16: Julio | B16: 3078321 | D16: 0 | F16: 0 | I16: 0 | K16: 0 | M16: 0 | O16: 3078321
A17: Agosto | B17: 3078321 | D17: 0 | F17: 0 | I17: 0 | K17: 0 | M17: 0 | O17: 3078321
A18: Setiembre | B18: 3078321 | D18: 0 | F18: 0 | I18: 0 | K18: 0 | M18: 0 | O18: 3078321
A19: Octubre | B19: 3078321 | D19: 78862 | F19: 54631 | I19: 17598 | K19: 67382 | M19: 182 | O19: 3126652
A20: Noviembre | B20: 3126652 | D20: 7321 | F20: 4051 | I20: 1212 | K20: 4277 | M20: 7 | O20: 3132528
A21: Diciembre | B21: 3132528 | D21: 6123 | F21: 3635 | I21: 1233 | K21: 3193 | M21: 5 | O21: 3137855 | Q21: =O21-3137855 -> 0
A24: 1/ El Padrón Nacional Electoral se cerró en octubre 2013 para las elecciones presidenciales de febreroy abril 2014, los movimientos acumulados se contabilizan en octubre 2014.
A25: 2/ Incluye nuevos electores, inclusión condicional de nuevos electores y otras inclusiones.
A27: Fuente: Sección Padrón Electoral del Tribunal Supremo de Elecciones.

Sheet 7
A1: CUADRO 7
A2: COSTA RICA: SOLICITUDES DE CÉDULA RECIBIDAS, POR CLASE DE SOLICITUD
A3: SEGÚN MES, AL 31 DE DICIEMBRE 2014
A4: (Absoluto y Porcentaje)
A6: Mes | B6: Clase de solicitud
B7: Absoluto | F7: Porcentaje
B8: Total | C8: Primera vez | D8: Duplicado | E8: Traslado | F8: Total | G8: Primera vez | H8: Duplicado | I8: Traslado
A10: TOTAL | B10: =SUM(B12:B23) -> 670531 | C10: =SUM(C12:C23) -> 80253 | D10: =SUM(D12:D23) -> 589824 | E10: =SUM(E12:E23) -> 454 | F10: =SUM(G10:I10) -> 100 | G10: =C10/$B10*100 -> 11.96857416 | H10: =D10/$B10*100 -> 87.96371831 | I10: =E10/$B10*100 -> 0.06770753328
A12: Enero | B12: 80508 | C12: 5855 | D12: 74651 | E12: 2 | F12: =SUM(G12:I12) -> 100 | G12: =C12/$B12*100 -> 7.272569186 | H12: =D12/$B12*100 -> 92.72494659 | I12: =E12/$B12*100 -> 0.00248422517
A13: Febrero | B13: 59441 | C13: 6369 | D13: 53066 | E13: 6 | F13: 100 | G13: =C13/$B13*100 -> 10.71482647 | H13: 89.27507949 | I13: 0.01009404283
A14: Marzo | B14: 57500 | C14: 6121 | D14: 51378 | E14: 1 | F14: 100 | G14: 10.64521739 | H14: 89.35304348 | I14: 0.001739130435
A15: Abril | B15: 45124 | C15: 5369 | D15: 39749 | E15: 6 | F15: 100 | G15: 11.89832462 | H15: 88.08837869 | I15: 0.01329669356
A16: Mayo | B16: 53853 | C16: 6897 | D16: 46924 | E16: 32 | F16: 100 | G16: 12.80708596 | H16: 87.13349303 | I16: 0.05942101647
A17: Junio | B17: 50169 | C17: 5766 | D17: 44322 | E17: 81 | F17: 100 | G17: 11.49315314 | H17: 88.34539257 | I17: 0.1614542845
A18: Julio | B18: 54032 | C18: 7140 | D18: 46802 | E18: 90 | F18: 100 | G18: 13.21439147 | H18: 86.61904057 | I18: 0.1665679597
A19: Agosto | B19: 50652 | C19: 6617 | D19: 43994 | E19: 41 | F19: 100 | G19: 13.06365 | H19: 86.85540551 | I19: 0.08094448393
A20: Setiembre | B20: 51715 | C20: 7283 | D20: 44382 | E20: 50 | F20: =SUM(G20:I20) -> 100 | G20: 14.08295466 | H20: 85.8203616 | I20: 0.09668374746
A21: Octubre | B21: 57284 | C21: 7882 | D21: 49337 | E21: 65 | F21: 100 | G21: 13.759514 | H21: 86.12701627 | I21: 0.1134697298
A22: Noviembre | B22: 53207 | C22: 6894 | D22: 46273 | E22: 40 | F22: 100 | G22: 12.95694176 | H22: 86.96788017 | I22: 0.07517807807
A23: Diciembre | B23: 57046 | C23: 8060 | D23: 48946 | E23: 40 | F23: 100 | G23: 14.12894857 | H23: 85.80093258 | I23: 0.07011885145
A26: Fuente: Sección Solicitudes Cedulares y Coordinación de Servicios Regionales del Tribunal Supremo de Elecciones.

Sheet G3
A2: GRÁFICO 3
A3: COSTA RICA: PORCENTAJE DE SOLICITUDES DE CÉDULA RECIBIDAS | J3: SOLICITUDES CEDULARES RECIBIDAS
A4: POR CLASE DE SOLICITUD, AL 31 DE DICIEMBRE 2014 | J4: TOTAL | K4: =SUM(K5:K7) -> 670531
J5: Duplicado | K5: 589824 | L5: =+K5/$K$4*100 -> 87.96371831
J6: Primera vez | K6: 80253 | L6: =+K6/$K$4*100 -> 11.96857416
E7: Sin lugar | J7: Traslado | K7: 454 | L7: =+K7/$K$4*100 -> 0.06770753328
A30: Fuente: Cuadro 7.

Sheet 8
A1: CUADRO 8
A2: COSTA RICA: SOLICITUDES DE CÉDULA RECIBIDAS, POR CLASE DE SOLICITUD
A3: SEGÚN PROVINCIA, AL 31 DE DICIEMBRE 2014
A4: (Absoluto y Porcentaje)
A6: Provincia | B6: Clase de solicitud
B7: Absoluto | F7: Porcentaje
B8: Total | C8: Primera vez | D8: Duplicado | E8: Traslado | F8: Total | G8: Primera vez | H8: Duplicado | I8: Traslado
A10: Costa Rica | B10: =SUM(C10:E10) -> 670531 | C10: =SUM(C12:C18) -> 80253 | D10: 589824 | E10: 454 | F10: =SUM(F12:F18) -> 100 | G10: 100 | H10: 100 | I10: 100
A12: San José | B12: =SUM(C12:E12) -> 272742 | C12: 28907 | D12: 243677 | E12: 158 | F12: =(B12/B$10*100) -> 40.67552432 | G12: =(C12/C$10*100) -> 36.01983726 | H12: =D12/D$10*100 -> 41.31351047 | I12: =E12/E$10*100 -> 34.80176211
A13: Alajuela | B13: =SUM(C13:E13) -> 125109 | C13: 17197 | D13: 107761 | E13: 151 | F13: =(B13/B$10*100) -> 18.65819776 | G13: 21.42848242 | H13: =D13/D$10*100 -> 18.27002631 | I13: 33.25991189
A14: Cartago | B14: 49780 | C14: 7183 | D14: 42559 | E14: 38 | F14: 7.423966975 | G14: 8.95044422 | H14: 7.215542263 | I14: 8.370044053
A15: Heredia | B15: 45645 | C15: 6145 | D15: 39445 | E15: 55 | F15: 6.807291535 | G15: 7.657034628 | H15: 6.687588162 | I15: =E15/E$10*100 -> 12.11453744
A16: Guanacaste | B16: 47958 | C16: 5878 | D16: 42057 | E16: 23 | F16: 7.152242029 | G16: 7.324336785 | H16: 7.130432129 | I16: 5.066079295
A17: Puntarenas | B17: 61108 | C17: 7524 | D17: 53576 | E17: 8 | F17: 9.113374326 | G17: 9.375350454 | H17: 9.083387587 | I17: 1.762114537
A18: Limón | B18: 68189 | C18: 7419 | D18: 60749 | E18: 21 | F18: 10.16940306 | G18: 9.244514224 | H18: 10.29951308 | I18: 4.625550661
A21: Fuente: Sección Solicitudes Cedulares y Coordinación de Servicios Regionales del Tribunal Supremo de Elecciones.

Sheet G4
A2: GRÁFICO 4
A3: COSTA RICA: SOLICITUDES DE CÉDULA RECIBIDAS, POR CLASE DE SOLICITUD | L3: PV | M3: DUP | N3: TRASL
A4: SEGÚN PROVINCIA, AL 31 DE DICIEMBRE 2014 | K4: San José | L4: 28907 | M4: 243677 | N4: 158
K5: Alajuela | L5: 17197 | M5: 107761 | N5: 151
K6: Limón | L6: 7419 | M6: 60749 | N6: 21
E7: Sin lugar | K7: Puntarenas | L7: 7524 | M7: 53576 | N7: 8
K8: Guanacaste | L8: 5878 | M8: 42057 | N8: 23
K9: Cartago | L9: 7183 | M9: 42559 | N9: 38 | O9: 670531
K10: Heredia | L10: 6145 | M10: 39445 | N10: 55
K11: Total | L11: 80253 | M11: 589824 | N11: 454
L13: Duplicado | M13: Primera vez | N13: Traslado
K14: Heredia | L14: 39.445 | M14: 6.145 | N14: 0.055
K15: Guanacaste | L15: 42.057 | M15: 5.878 | N15: 0.023
K16: Cartago | L16: 42.559 | M16: 7.183 | N16: 0.038
K17: Puntarenas | L17: 53.576 | M17: 7.524 | N17: 0.008
K18: Limón | L18: 60.749 | M18: 7.419 | N18: 0.021
K19: Alajuela | L19: 107.761 | M19: 17.197 | N19: 0.151
K20: San José | L20: 243.677 | M20: 28.907 | N20: 0.158
K21: Total | L21: 589.824 | M21: 80.253 | N21: 0.454
A29: Fuente: Cuadro 8.

Sheet 9
A1: CUADRO 9
A2: COSTA RICA: SOLICITUDES DE CÉDULA RECIBIDAS
A3: POR FUENTE DE INGRESO, SEGÚN MES
A4: AL 31 DE DICIEMBRE 2014
A6: Mes | B6: Fuente de ingreso
B7: Total | C7: Oficina central | D7: Oficinas regionales 1/ | E7: Consulados | F7: Cedulación a domicilio | G7: Cedulación ambulante
A9: TOTAL | B9: =SUM(B11:B22) -> 670531 | C9: 232204 | D9: 421632 | E9: 3975 | F9: 3070 | G9: 9650
A11: Enero | B11: =SUM(C11:G11) -> 80508 | C11: 29743 | D11: 50067 | E11: 288 | F11: 410 | G11: 0
A12: Febrero | B12: =SUM(C12:G12) -> 59441 | C12: 21414 | D12: 37397 | E12: 357 | F12: 273 | G12: 0
A13: Marzo | B13: 57500 | C13: 20096 | D13: 36334 | E13: 350 | F13: 309 | G13: 411
A14: Abril | B14: 45124 | C14: 16113 | D14: 28463 | E14: 308 | F14: 240 | G14: 0
A15: Mayo | B15: 53853 | C15: 18868 | D15: 33422 | E15: 351 | F15: 189 | G15: 1023
A16: Junio | B16: 50169 | C16: 17484 | D16: 30979 | E16: 337 | F16: 260 | G16: 1109
A17: Julio | B17: 54032 | C17: 19308 | D17: 33088 | E17: 349 | F17: 272 | G17: 1015
A18: Agosto | B18: 50652 | C18: 17707 | D18: 31423 | E18: 323 | F18: 210 | G18: 989
A19: Setiembre | B19: 51715 | C19: 18474 | D19: 32678 | E19: 285 | F19: 278 | G19: 0
A20: Octubre | B20: 57284 | C20: 19964 | D20: 35365 | E20: 363 | F20: 240 | G20: 1352
A21: Noviembre | B21: 53207 | C21: 17600 | D21: 31278 | E21: 361 | F21: 217 | G21: 3751
A22: Diciembre | B22: 57046 | C22: 15433 | D22: 41138 | E22: 303 | F22: 172 | G22: 0
A25: 1/ El Tribunal Supremo de Elecciones cuenta con 32 Oficinas Regionales.
A27: Fuente: Sección Solicitudes Cedulares y Coordinación de Servicios Regionales del Tribunal Supremo de Elecciones.

Sheet G5
A2: GRÁFICO 5
A3: COSTA RICA: PORCENTAJE DE SOLICITUDES DE CÉDULA RECIBIDAS | J3: SOLICITUDES CEDULARES RECIBIDAS
A4: POR FUENTE DE INGRESO, AL 31 DE DICIEMBRE 2014 | J4: TOTAL | K4: 670531
J5: Oficinas Regionales | K5: 421632 | L5: 62.88031426
J6: Oficina Central | K6: 232204 | L6: 34.62986797
E7: Sin lugar | J7: Cedulación Ambulante | K7: 9650 | L7: 1.439157921
J8: Consulados y domicilio | K8: 7045 | L8: 1.05065985
A29: Fuente: Cuadro 9.

Sheet 10
A2: CUADRO 10
A3: SOLICITUDES DE CÉDULA RECIBIDAS EN LAS OFICINAS REGIONALES
A4: POR MES, SEGÚN OFICINA REGIONAL
A5: AL 31 DE DICIEMBRE 2014
A7: Oficina Regional | B7: Total | C7: Enero | D7: Febrero | E7: Marzo | F7: Abril | G7: Mayo | H7: Junio | I7: Julio | J7: Agosto | K7: Setiembre | L7: Octubre | M7: Noviembre | N7: Diciembre
A9: Total | B9: =SUM(B11:B42) -> 421632 | C9: =SUM(C11:C42) -> 50067 | D9: 37397 | E9: 36334 | F9: 28463 | G9: 33422 | H9: 30979 | I9: 33088 | J9: 31423 | K9: 32678 | L9: =SUM(L11:L42) -> 35365 | M9: 31278 | N9: 41138
A11: Aguirre | B11: =SUM(C11:N11) -> 7080 | C11: 815 | D11: 627 | E11: 598 | F11: 560 | G11: 628 | H11: 542 | I11: 564 | J11: 574 | K11: 601 | L11: 592 | M11: 544 | N11: 435
A12: Alajuela | B12: =SUM(C12:N12) -> 36503 | C12: 5053 | D12: 3603 | E12: 3278 | F12: 2800 | G12: 2852 | H12: 2646 | I12: 2912 | J12: 2675 | K12: 2747 | L12: 2907 | M12: 2708 | N12: 2322
A13: Atenas | B13: 2969 | C13: 353 | D13: 327 | E13: 248 | F13: 207 | G13: 234 | H13: 229 | I13: 238 | J13: 207 | K13: 215 | L13: 265 | M13: 235 | N13: 211
A14: Buenos Aires | B14: 4986 | C14: 567 | D14: 454 | E14: 457 | F14: 359 | G14: 417 | H14: 392 | I14: 403 | J14: 377 | K14: 341 | L14: 458 | M14: 408 | N14: 353
A15: Cañas | B15: 9070 | C15: 1066 | D15: 806 | E15: 764 | F15: 560 | G15: 817 | H15: 824 | I15: 738 | J15: 669 | K15: 768 | L15: 806 | M15: 704 | N15: 548
A16: Cartago | B16: 38214 | C16: 5350 | D16: 3429 | E16: 3431 | F16: 3023 | G16: 3247 | H16: 2786 | I16: 3121 | J16: 2764 | K16: 3013 | L16: 3152 | M16: 2783 | N16: 2115
A17: Corredores | B17: 9101 | C17: 1100 | D17: 819 | E17: 837 | F17: 537 | G17: 723 | H17: 701 | I17: 731 | J17: 786 | K17: 741 | L17: 795 | M17: 709 | N17: 622
A18: Coto Brus | B18: 4746 | C18: 480 | D18: 442 | E18: 416 | F18: 334 | G18: 420 | H18: 359 | I18: 355 | J18: 382 | K18: 366 | L18: 414 | M18: 429 | N18: 349
A19: Golfito | B19: 5295 | C19: 561 | D19: 514 | E19: 497 | F19: 328 | G19: 481 | H19: 376 | I19: 454 | J19: 414 | K19: 419 | L19: 486 | M19: 425 | N19: 340
A20: Grecia | B20: 12424 | C20: 1635 | D20: 1165 | E20: 1150 | F20: 907 | G20: 907 | H20: 884 | I20: 1061 | J20: 928 | K20: 924 | L20: 1147 | M20: 941 | N20: 775
A21: Guatuso | B21: 2273 | C21: 250 | D21: 254 | E21: 208 | F21: 158 | G21: 197 | H21: 185 | I21: 168 | J21: 167 | K21: 172 | L21: 207 | M21: 161 | N21: 146
A22: Heredia | B22: 38506 | C22: 4945 | D22: 3222 | E22: 3567 | F22: 3047 | G22: 3071 | H22: 2914 | I22: 3224 | J22: 2852 | K22: 3094 | L22: 3315 | M22: 2873 | N22: 2382
A23: Jicaral | B23: 2187 | C23: 259 | D23: 188 | E23: 169 | F23: 121 | G23: 267 | H23: 149 | I23: 190 | J23: 194 | K23: 163 | L23: 190 | M23: 171 | N23: 126
A24: Liberia | B24: 19573 | C24: 2250 | D24: 1638 | E24: 1717 | F24: 1334 | G24: 1634 | H24: 1535 | I24: 1675 | J24: 1554 | K24: 1606 | L24: 1754 | M24: 1567 | N24: 1309
A25: Limón | B25: 21406 | C25: 2680 | D25: 1818 | E25: 1881 | F25: 1526 | G25: 1704 | H25: 1595 | I25: 1541 | J25: 1714 | K25: 1860 | L25: 1913 | M25: 1744 | N25: 1430
A26: Los Chiles | B26: 2333 | C26: 265 | D26: 206 | E26: 196 | F26: 165 | G26: 202 | H26: 203 | I26: 192 | J26: 168 | K26: 206 | L26: 187 | M26: 170 | N26: 173
A27: Nicoya | B27: 8409 | C27: 1093 | D27: 729 | E27: 724 | F27: 566 | G27: 721 | H27: 645 | I27: 674 | J27: 647 | K27: 688 | L27: 732 | M27: 663 | N27: 527
A28: Orotina | B28: 5694 | C28: 657 | D28: 551 | E28: 476 | F28: 332 | G28: 446 | H28: 471 | I28: 490 | J28: 461 | K28: 480 | L28: 491 | M28: 467 | N28: 372
A29: Osa | B29: 4177 | C29: 408 | D29: 358 | E29: 421 | F29: 265 | G29: 381 | H29: 350 | I29: 377 | J29: 314 | K29: 365 | L29: 339 | M29: 329 | N29: 270
A30: Pérez Zeledón | B30: 21594 | C30: 2484 | D30: 2132 | E30: 2048 | F30: 1462 | G30: 1729 | H30: 1624 | I30: 1762 | J30: 1637 | K30: 1746 | L30: 1892 | M30: 1674 | N30: 1404
A31: Pococí | B31: 28226 | C31: 3356 | D31: 2490 | E31: 2478 | F31: 1880 | G31: 2325 | H31: 2312 | I31: 2293 | J31: 2273 | K31: 2359 | L31: 2550 | M31: 2119 | N31: 1791
A32: Puntarenas | B32: 23339 | C32: 2771 | D32: 2004 | E32: 2064 | F32: 1493 | G32: 1854 | H32: 1762 | I32: 1892 | J32: 1937 | K32: 1858 | L32: 2185 | M32: 1862 | N32: 1657
A33: Puriscal | B33: 7137 | C33: 886 | D33: 886 | E33: 641 | F33: 450 | G33: 603 | H33: 518 | I33: 556 | J33: 585 | K33: 557 | L33: 559 | M33: 481 | N33: 415
A34: San Carlos | B34: 20778 | C34: 2372 | D34: 1917 | E34: 1838 | F34: 1334 | G34: 1833 | H34: 1621 | I34: 1782 | J34: 1663 | K34: 1741 | L34: 1819 | M34: 1580 | N34: 1278
A35: San Ramón | B35: 32028 | C35: 2135 | D35: 1695 | E35: 1520 | F35: 1115 | G35: 1179 | H35: 1221 | I35: 1386 | J35: 1258 | K35: 1310 | L35: 1410 | M35: 1262 | N35: 16537
A36: Santa Cruz | B36: 9652 | C36: 1072 | D36: 801 | E36: 821 | F36: 647 | G36: 843 | H36: 756 | I36: 831 | J36: 841 | K36: 824 | L36: 854 | M36: 770 | N36: 592
A37: Sarapiquí | B37: 7017 | C37: 834 | D37: 752 | E37: 607 | F37: 468 | G37: 567 | H37: 554 | I37: 538 | J37: 538 | K37: 594 | L37: 608 | M37: 516 | N37: 441
A38: Siquirres | B38: 12049 | C38: 1501 | D38: 1065 | E38: 1040 | F38: 796 | G38: 1005 | H38: 930 | I38: 957 | J38: 947 | K38: 918 | L38: 1154 | M38: 1024 | N38: 712
A39: Talamanca | B39: 4631 | C39: 558 | D39: 473 | E39: 412 | F39: 283 | G39: 408 | H39: 358 | I39: 332 | J39: 369 | K39: 430 | L39: 355 | M39: 362 | N39: 291
A40: Tarrazú | B40: 3909 | C40: 383 | D40: 410 | E40: 349 | F40: 293 | G40: 342 | H40: 304 | I40: 360 | J40: 255 | K40: 323 | L40: 317 | M40: 335 | N40: 238
A41: Turrialba | B41: 11364 | C41: 1273 | D41: 1159 | E41: 1039 | F41: 782 | G41: 964 | H41: 827 | I41: 916 | J41: 889 | K41: 844 | L41: 1082 | M41: 906 | N41: 683
A42: Upala | B42: 4962 | C42: 655 | D42: 463 | E42: 442 | F42: 331 | G42: 421 | H42: 406 | I42: 375 | J42: 384 | K42: 405 | L42: 430 | M42: 356 | N42: 294
A45: FUENTE: Coordinación de Servicios Regionales del Tribunal Supremo de Elecciones.

Sheet 11
A1: CUADRO 11
A2: COSTA RICA: PRODUCTOS Y SERVICIOS BRINDADOS, POR TIPO DE SERVICIO
A3: SEGÚN MES, AL 31 DE DICIEMBRE 2014
A5: Mes | B5: Productos y Sevicios
B6: Cédulas de identidad impresas | C6: Tarjetas identidad de menores impresas | D6: Certificaciones y constancias expedidas | E6: Asambleas de partidos políticos fiscalizadas | F6: Atención de consultas en materia electoral 1/ | G6: Movimientos y actualizaciones al Padrón Electoral 2/
A8: Total | B8: =SUM(B10:B21) -> 659978 | C8: 146077 | D8: 2706507 | E8: 269 | F8: 9640 | G8: 967289
A10: Enero | B10: 81686 | C10: 16575 | D10: 273001 | E10: 7 | F10: 2561 | G10: 0
A11: Febrero | B11: 57930 | C11: 15098 | D11: 295440 | E11: 1 | F11: 1864 | G11: 0
A12: Marzo | B12: 58734 | C12: 9781 | D12: 268275 | E12: 4 | F12: 1648 | G12: 0
A13: Abril | B13: 47966 | C13: 7135 | D13: 178453 | E13: 13 | F13: 868 | G13: 0
A14: Mayo | B14: 53476 | C14: 11859 | D14: 209418 | E14: 15 | F14: 623 | G14: 0
A15: Junio | B15: 49995 | C15: 8240 | D15: 247457 | E15: 19 | F15: 363 | G15: 0
A16: Julio | B16: 53177 | C16: 12470 | D16: 204520 | E16: 9 | F16: 271 | G16: 0
A17: Agosto | B17: 50999 | C17: 9717 | D17: 205427 | E17: 20 | F17: 273 | G17: 0
A18: Setiembre | B18: 52135 | C18: 10311 | D18: 200362 | E18: 85 | F18: 290 | G18: 0
A19: Octubre | B19: 58669 | C19: 15452 | D19: 236655 | E19: 27 | F19: 314 | G19: 858627
A20: Noviembre | B20: 50851 | C20: 13320 | D20: 217431 | E20: 32 | F20: 302 | G20: 59957
A21: Diciembre | B21: 44360 | C21: 16119 | D21: 170068 | E21: 37 | F21: 263 | G21: 48705
A24: 1/ De Partidos Políticos, Municipalidades, Asamblea Legislativa y otros.
A25: 2/ El Padrón Nacional Electoral se cerró en octubre 2013 para las elecciones presidenciales de febreroy abril 2014, los movimientos acumulados se contabilizan en octubre 2014.
A27: Fuente: Oficinas del Tribunal Supremo de Elecciones.

Sheet 12
A1: CUADRO 12
A2: COSTA RICA: INSCRIPCIONES CIVILES POR MES, SEGÚN CLASE DE INSCRIPCIÓN
A3: AL 31 DE DICIEMBRE 2014
A5: Clase de inscripción 1/ | B5: Total | C5: Mes
C6: Enero | D6: Febrero | E6: Marzo | F6: Abril | G6: Mayo | H6: Junio | I6: Julio | J6: Agosto | K6: Setiembre | L6: Octubre | M6: Noviembre | N6: Diciembre
A8: Nacimientos | B8: =SUM(C8:N8) -> 73212 | C8: 8041 | D8: 5123 | E8: 5739 | F8: 4384 | G8: 7173 | H8: 5668 | I8: 5988 | J8: 6075 | K8: 6877 | L8: 6919 | M8: 5965 | N8: 5260
A9: Matrimonios: | B9: =SUM(C9:N9) -> 25194 | C9: 4241 | D9: 2274 | E9: 2230 | F9: 1602 | G9: 2297 | H9: 2022 | I9: 1836 | J9: 1743 | K9: 1970 | L9: 1739 | M9: 1555 | N9: 1685
A10: Católicos | B10: 7365 | C10: 1420 | D10: 895 | E10: 804 | F10: 625 | G10: 291 | H10: 469 | I10: 743 | J10: 560 | K10: 526 | L10: 412 | M10: 310 | N10: 310
A11: Civiles | B11: 17360 | C11: 2776 | D11: 1352 | E11: 1424 | F11: 955 | G11: 1865 | H11: 1520 | I11: 1091 | J11: 1168 | K11: 1406 | L11: 1314 | M11: 1193 | N11: 1296
A12: Extranjeros2/ | B12: 469 | C12: 45 | D12: 27 | E12: 2 | F12: 22 | G12: 141 | H12: 33 | I12: 2 | J12: 15 | K12: 38 | L12: 13 | M12: 52 | N12: 79
A13: Defunciones | B13: 20817 | C13: 2300 | D13: 1518 | E13: 1652 | F13: 1007 | G13: 2137 | H13: 1645 | I13: 1488 | J13: 1746 | K13: 1821 | L13: 2124 | M13: 1748 | N13: 1631
A14: Divorcios | B14: 10864 | C14: 995 | D14: 811 | E14: 1222 | F14: 611 | G14: 503 | H14: 299 | I14: 980 | J14: 1583 | K14: 1081 | L14: 1197 | M14: 976 | N14: 606
A15: Separaciones Judiciales | B15: 85 | C15: 2 | D15: 7 | E15: 5 | F15: 7 | G15: 21 | H15: 5 | I15: 4 | J15: 5 | K15: 1 | L15: 12 | M15: 0 | N15: 16
A16: Reconocimientos | B16: 19028 | C16: 2296 | D16: 1952 | E16: 2195 | F16: 952 | G16: 855 | H16: 369 | I16: 2020 | J16: 1976 | K16: 3607 | L16: 660 | M16: 1323 | N16: 823
A17: Legitimaciones | B17: 19 | C17: 1 | D17: 0 | E17: 1 | F17: 0 | G17: 2 | H17: 1 | I17: 2 | J17: 5 | K17: 0 | L17: 7 | M17: 0 | N17: 0
A18: Adopciones | B18: 242 | C18: 13 | D18: 27 | E18: 17 | F18: 0 | G18: 52 | H18: 23 | I18: 10 | J18: 27 | K18: 0 | L18: 28 | M18: 14 | N18: 31
A19: Impugnación de paternidad | B19: 338 | C19: 26 | D19: 12 | E19: 39 | F19: 12 | G19: 41 | H19: 10 | I19: 43 | J19: 40 | K19: 36 | L19: 31 | M19: 2 | N19: 46
A20: Investigación de paternidad | B20: 443 | C20: 54 | D20: 15 | E20: 45 | F20: 15 | G20: 86 | H20: 39 | I20: 22 | J20: 62 | K20: 42 | L20: 51 | M20: 0 | N20: 12
A21: Opciones 3/ | B21: 351 | C21: 9 | D21: 0 | E21: 4 | F21: 11 | G21: 247 | H21: 15 | I21: 10 | J21: 0 | K21: 0 | L21: 19 | M21: 12 | N21: 24
A22: Cartas de naturalización entregadas | B22: 2018 | C22: 204 | D22: 177 | E22: 192 | F22: 147 | G22: 145 | H22: 128 | I22: 161 | J22: 114 | K22: 141 | L22: 159 | M22: 237 | N22: 213
A23: Hombres | B23: 621 | C23: 94 | D23: 71 | E23: 89 | F23: 70 | G23: 63 | H23: 64 | I23: 65 | J23: 42 | K23: 63 | L23: 0 | M23: 0 | N23: 0
A24: Mujeres | B24: 1118 | C24: 110 | D24: 106 | E24: 103 | F24: 77 | G24: 82 | H24: 64 | I24: 96 | J24: 72 | K24: 78 | L24: 76 | M24: 132 | N24: 122
A27: 1/ Todos los datos se refieren a hechos inscritos en el mes respectivo, no así a los ocurridos.
A29: 2/ Matrimonios inscritos, pero realizados en el extranjero.
A31: 3/ Trámite realizado en Actos Jurídicos.
A33: Fuente: Sección de Inscripciones, Oficina de Actos Jurídicos, Sección de Opciones y Naturalizaciones del Tribunal Supremo de Elecciones.

Sheet G6
A2: GRÁFICO 6
A3: COSTA RICA: MATRIMONIOS INSCRITOS, SEGÚN CLASE DE INSCRIPCIÓN | K3: MATRIMONIOS INSCRITOS
A4: AL 31 DE DICIEMBRE 2014 | K4: Civiles | L4: 17360 | M4: =+L4/$L$7*100 -> 68.90529491
K5: Católicos | L5: 7365 | M5: =+L5/$L$7*100 -> 29.23315075
K6: Extranjeros | L6: 469 | M6: =+L6/$L$7*100 -> 1.861554338
E7: Sin lugar | K7: Total | L7: =SUM(L4:L6) -> 25194
A29: Fuente: Cuadro 12.

Sheet G7
A2: GRÁFICO 7 | K2: MATRIMONIOS vs DIVORCIOS
A3: COSTA RICA: MATRIMONIOS Y DIVORCIOS INSCRITOS | L3: Matrimonios | M3: Divorcios
A4: POR MES, AL 31 DE DICIEMBRE 2014 | K4: ENE | L4: 4241 | M4: 995
K5: FEB | L5: 2274 | M5: 811
K6: MAR | L6: 2230 | M6: 1222
K7: ABR | L7: 1602 | M7: 611
K8: MAY | L8: 2297 | M8: 503
K9: JUN | L9: 2022 | M9: 299
K10: JUL | L10: 1836 | M10: 980
K11: AGO | L11: 1743 | M11: 1583
K12: SET | L12: 1970 | M12: 1081
K13: OCT | L13: 1739 | M13: 1197
K14: NOV | L14: 1555 | M14: 976
K15: DIC | L15: 1685 | M15: 606
L16: =SUM(L4:L15) -> 25194 | M16: =SUM(M4:M15) -> 10864
A30: Fuente: Cuadro 12.

Sheet 13
A1: CUADRO 13
A2: COSTA RICA: NACIMIENTOS INSCRITOS, POR PROVINCIA Y PARTIDO ESPECIAL
A3: SEGÚN MES, AL 31 DE DICIEMBRE 2014
A5: Mes | B5: Total | C5: San José | D5: Alajuela | E5: Cartago | F5: Heredia | G5: Guanacaste | H5: Puntarenas | I5: Limón | J5: Partido especial 1/
A7: Costa Rica | B7: =SUM(B9:B20) -> 73212 | C7: =SUM(C9:C20) -> 30595 | D7: =SUM(D9:D20) -> 11590 | E7: 7019 | F7: 5149 | G7: 5126 | H7: 5065 | I7: 7051 | J7: 1617
A9: Enero | B9: =SUM(C9:J9) -> 8041 | C9: 3318 | D9: 1273 | E9: 841 | F9: 621 | G9: 748 | H9: 490 | I9: 684 | J9: 66
A10: Febrero | B10: =SUM(C10:J10) -> 5123 | C10: 2161 | D10: 852 | E10: 420 | F10: 325 | G10: 472 | H10: 347 | I10: 471 | J10: 75
A11: Marzo | B11: 5739 | C11: 2567 | D11: 724 | E11: 712 | F11: 388 | G11: 363 | H11: 427 | I11: 510 | J11: 48
A12: Abril | B12: 4384 | C12: 1980 | D12: 563 | E12: 622 | F12: 288 | G12: 175 | H12: 245 | I12: 422 | J12: 89
A13: Mayo | B13: 7173 | C13: 3862 | D13: 1143 | E13: 495 | F13: 596 | G13: 210 | H13: 305 | I13: 532 | J13: 30
A14: Junio | B14: =SUM(C14:J14) -> 5668 | C14: 2490 | D14: 825 | E14: 399 | F14: 395 | G14: 352 | H14: 426 | I14: 727 | J14: 54
A15: Julio | B15: 5988 | C15: 2629 | D15: 903 | E15: 462 | F15: 420 | G15: 482 | H15: 448 | I15: 547 | J15: 97
A16: Agosto | B16: 6075 | C16: 2515 | D16: 775 | E16: 637 | F16: 491 | G16: 569 | H16: 408 | I16: 526 | J16: 154
A17: Setiembre | B17: 6877 | C17: 2750 | D17: 1293 | E17: 639 | F17: 428 | G17: 338 | H17: 567 | I17: 712 | J17: 150
A18: Octubre | B18: 6919 | C18: 1856 | D18: 1235 | E18: 831 | F18: 500 | G18: 596 | H18: 605 | I18: 826 | J18: 470
A19: Noviembre | B19: 5965 | C19: 2106 | D19: 1121 | E19: 480 | F19: 366 | G19: 484 | H19: 491 | I19: 613 | J19: 304
A20: Diciembre | B20: 5260 | C20: 2361 | D20: 883 | E20: 481 | F20: 331 | G20: 337 | H20: 306 | I20: 481 | J20: 80
A23: 1/ Inscripción de nacimientos de costarricenses nacidos en el extranjero.
A25: Fuente: Sección de Inscripciones del Tribunal Supremo de Elecciones.

Sheet 14
A1: CUADRO 14
A2: COSTA RICA: DEFUNCIONES INSCRITAS, POR PROVINCIA, SEGÚN MES
A3: AL 31 DE DICIEMBRE 2014
A5: Mes | B5: Total | C5: San José | D5: Alajuela | E5: Cartago | F5: Heredia | G5: Guanacaste | H5: Puntarenas | I5: Limón
A7: Costa Rica | B7: =SUM(B9:B20) -> 20817 | C7: =SUM(C9:C20) -> 9394 | D7: =SUM(D9:D20) -> 3411 | E7: 2036 | F7: 1539 | G7: 1592 | H7: 1602 | I7: 1243
A9: Enero | B9: =SUM(C9:I9) -> 2300 | C9: 1027 | D9: 336 | E9: 267 | F9: 139 | G9: 213 | H9: 177 | I9: 141
A10: Febrero | B10: =SUM(C10:I10) -> 1518 | C10: 756 | D10: 245 | E10: 183 | F10: 126 | G10: 54 | H10: 83 | I10: 71
A11: Marzo | B11: 1652 | C11: 691 | D11: 313 | E11: 172 | F11: 120 | G11: 149 | H11: 122 | I11: 85
A12: Abril | B12: 1007 | C12: 312 | D12: 296 | E12: 61 | F12: 86 | G12: 86 | H12: 94 | I12: 72
A13: Mayo | B13: 2137 | C13: 796 | D13: 427 | E13: 229 | F13: 134 | G13: 213 | H13: 208 | I13: 130
A14: Junio | B14: 1645 | C14: 702 | D14: 242 | E14: 146 | F14: 128 | G14: 165 | H14: 168 | I14: 94
A15: Julio | B15: 1488 | C15: 792 | D15: 195 | E15: 127 | F15: 129 | G15: 84 | H15: 77 | I15: 84
A16: Agosto | B16: 1746 | C16: 882 | D16: 232 | E16: 153 | F16: 106 | G16: 131 | H16: 125 | I16: 117
A17: Setiembre | B17: 1821 | C17: 741 | D17: 296 | E17: 198 | F17: 175 | G17: 152 | H17: 124 | I17: 135
A18: Octubre | B18: 2124 | C18: 891 | D18: 387 | E18: 214 | F18: 172 | G18: 153 | H18: 204 | I18: 103
A19: Noviembre | B19: 1748 | C19: 785 | D19: 270 | E19: 154 | F19: 140 | G19: 118 | H19: 138 | I19: 143
A20: Diciembre | B20: 1631 | C20: 1019 | D20: 172 | E20: 132 | F20: 84 | G20: 74 | H20: 82 | I20: 68
A23: Fuente: Sección de Inscripciones del Tribunal Supremo de Elecciones.

Sheet G8
A2: GRÁFICO 8 | K2: Nacimientos | L2: Defunciones
A3: COSTA RICA: NACIMIENTOS Y DEFUNCIONES INSCRITAS | K3: =SUM(K4:K15) -> 73212 | L3: =SUM(L4:L15) -> 20817
A4: POR MES, AL 31 DE DICIEMBRE 2014 | J4: ENE | K4: 8041 | L4: 2300
J5: FEB | K5: 5123 | L5: 1518
J6: MAR | K6: 5739 | L6: 1652
E7: Sin lugar | J7: ABR | K7: 4384 | L7: 1007
J8: MAY | K8: 7173 | L8: 2137
J9: JUN | K9: 5668 | L9: 1645
J10: JUL | K10: 5988 | L10: 1488
J11: AGO | K11: 6075 | L11: 1746
J12: SET | K12: 6877 | L12: 1821
J13: OCT | K13: 6919 | L13: 2124
J14: NOV | K14: 5965 | L14: 1748
J15: DIC | K15: 5260 | L15: 1631
A26: Fuente: Cuadros 13 y 14.

Sheet 15
A1: CUADRO 15
A2: COSTA RICA: TARJETAS DE IDENTIDAD DE MENORES IMPRESAS
A3: POR PROVINCIA, SEGÚN MES, AL 31 DE DICIEMBRE 2014
A5: Mes | B5: Total | C5: Provincia
C6: San José | D6: Alajuela | E6: Cartago | F6: Heredia | G6: Guanacaste | H6: Puntarenas | I6: Limón
A8: Total | B8: =SUM(C8:I8) -> 146077 | C8: =SUM(C10:C21) -> 48618 | D8: =SUM(D10:D21) -> 29251 | E8: 13672 | F8: 12502 | G8: 10857 | H8: 15253 | I8: 15924
A10: Enero | B10: =SUM(C10:I10) -> 16575 | C10: 5642 | D10: 3553 | E10: 1554 | F10: 1267 | G10: 1322 | H10: 1516 | I10: 1721
A11: Febrero | B11: 15098 | C11: 4241 | D11: 3510 | E11: 1345 | F11: 1080 | G11: 1340 | H11: 1972 | I11: 1610
A12: Marzo | B12: 9781 | C12: 2840 | D12: 2025 | E12: 874 | F12: 892 | G12: 670 | H12: 1207 | I12: 1273
A13: Abril | B13: 7135 | C13: 2355 | D13: 1381 | E13: 725 | F13: 605 | G13: 502 | H13: 747 | I13: 820
A14: Mayo | B14: 11859 | C14: 4052 | D14: 2164 | E14: 1117 | F14: 1099 | G14: 967 | H14: 1167 | I14: 1293
A15: Junio | B15: 8240 | C15: 2752 | D15: 1517 | E15: 801 | F15: 656 | G15: 636 | H15: 860 | I15: 1018
A16: Julio | B16: 12470 | C16: 4451 | D16: 2456 | E16: 1338 | F16: 1058 | G16: 928 | H16: 1109 | I16: 1130
A17: Agosto | B17: 9717 | C17: 3471 | D17: 1759 | E17: 906 | F17: 926 | G17: 661 | H17: 971 | I17: 1023
A18: Setiembre | B18: 10311 | C18: 3653 | D18: 2116 | E18: 985 | F18: 1046 | G18: 529 | H18: 950 | I18: 1032
A19: Octubre | B19: 15452 | C19: 5573 | D19: 3144 | E19: 1613 | F19: 1225 | G19: 958 | H19: 1341 | I19: 1598
A20: Noviembre | B20: 13320 | C20: 4409 | D20: 2632 | E20: 1230 | F20: 1232 | G20: 962 | H20: 1472 | I20: 1383
A21: Diciembre | B21: 16119 | C21: 5179 | D21: 2994 | E21: 1184 | F21: 1416 | G21: 1382 | H21: 1941 | I21: 2023
A24: Fuente: Departamento Civil y Coordinación de Servicios Regionales del Tribunal Supremo de Elecciones.

Sheet 16
A1: CUADRO 16
A2: COSTA RICA: CERTIFICACIONES SOLICITADAS VÍA
A3: INTERNET, POR TIPO DE SOLICITUD, SEGÚN MES
A4: AL 31 DE DICIEMBRE 2014
A6: Mes | B6: Total | C6: Tipo de solicitud
C7: Nacimiento | D7: Matrimonio | E7: Defunción | F7: No aparece matrimonio
A9: Total | B9: =SUM(C9:F9) -> 75399 | C9: =SUM(C11:C22) -> 43230 | D9: =SUM(D11:D22) -> 14467 | E9: =SUM(E11:E22) -> 5010 | F9: =SUM(F11:F22) -> 12692
A11: Enero | B11: =SUM(C11:F11) -> 8245 | C11: 4644 | D11: 1678 | E11: 506 | F11: 1417
A12: Febrero | B12: =SUM(C12:F12) -> 7644 | C12: 4454 | D12: 1402 | E12: 539 | F12: 1249
A13: Marzo | B13: 7123 | C13: 4065 | D13: 1353 | E13: 465 | F13: 1240
A14: Abril | B14: 7123 | C14: 4065 | D14: 1353 | E14: 465 | F14: 1240
A15: Mayo | B15: 4880 | C15: 2597 | D15: 1066 | E15: 319 | F15: 898
A16: Junio | B16: 5724 | C16: 3113 | D16: 1306 | E16: 326 | F16: 979
A17: Julio | B17: 6030 | C17: 3462 | D17: 1121 | E17: 395 | F17: 1052
A18: Agosto | B18: 5850 | C18: 3428 | D18: 1088 | E18: 375 | F18: 959
A19: Setiembre | B19: 6029 | C19: 3385 | D19: 1140 | E19: 446 | F19: 1058
A20: Octubre | B20: 6582 | C20: 3718 | D20: 1210 | E20: 532 | F20: 1122
A21: Noviembre | B21: 5804 | C21: 3531 | D21: 1044 | E21: 386 | F21: 843
A22: Diciembre | B22: 4365 | C22: 2768 | D22: 706 | E22: 256 | F22: 635
A25: Fuente: Departamento Civil del Tribunal Supremo de Elecciones.

Sheet 17
A2: CUADRO 17
A3: COSTA RICA: CARTAS DE NATURALIZACIÓN ENTREGADAS, POR MES
A4: SEGÚN PAÍS DE ORIGEN, AL 31 DE DICIEMBRE 2014
A6: País de origen | B6: Total | C6: Enero | D6: Febrero | E6: Marzo | F6: Abril | G6: Mayo | H6: Junio | I6: Julio | J6: Agosto | K6: Setiembre | L6: Octubre | M6: Noviembre | N6: Diciembre
A8: Total | B8: =SUM(B10:B56) -> 2018 | C8: 204 | D8: 177 | E8: 192 | F8: 147 | G8: 145 | H8: 128 | I8: 161 | J8: 114 | K8: 141 | L8: 159 | M8: 237 | N8: 213
A10: Nicaragua | B10: =SUM(C10:N10) -> 1043 | C10: =102+5 -> 107 | D10: =76+2 -> 78 | E10: 94 | F10: 81 | G10: 69 | H10: 72 | I10: 93 | J10: 70 | K10: 54 | L10: =76+6 -> 82 | M10: 127 | N10: 116
A11: Colombia | B11: 394 | C11: =27+4 -> 31 | D11: =39+2 -> 41 | E11: 47 | F11: =28 -> 28 | G11: 36 | H11: 23 | I11: 32 | J11: 13 | K11: 33 | L11: =23+3 -> 26 | M11: 42 | N11: 42
A12: El Salvador | B12: 73 | C12: =5+1 -> 6 | D12: =10+1 -> 11 | E12: =9+1 -> 10 | F12: 2 | G12: 4 | H12: 5 | I12: 7 | J12: 4 | K12: 7 | L12: =4 -> 4 | M12: 8 | N12: 5
A13: Estados Unidos | B13: 70 | C13: =3+1 -> 4 | D13: =4+1 -> 5 | E13: =9+2 -> 11 | F13: =1 -> 1 | G13: 4 | H13: 6 | I13: 1 | J13: 4 | K13: 7 | L13: =8 -> 8 | M13: 14 | N13: 5
A14: Cuba | B14: 52 | C14: =8+1 -> 9 | D14: =5+1 -> 6 | E14: =5 -> 5 | F14: 2 | G14: 6 | H14: 1 | I14: 2 | J14: 1 | K14: 3 | L14: =3 -> 3 | M14: 6 | N14: 8
A15: China | B15: 47 | C15: =6 -> 6 | D15: =5+1 -> 6 | E15: =2 -> 2 | F15: =1 -> 1 | G15: 2 | H15: 2 | I15: 2 | J15: 2 | K15: 8 | L15: =4 -> 4 | M15: 9 | N15: 3
A16: República Dominicana | B16: 46 | C16: =7 -> 7 | D16: =4 -> 4 | E16: =5+2 -> 7 | F16: 2 | G16: 1 | H16: 4 | I16: 7 | J16: 3 | K16: 4 | L16: =4 -> 4 | M16: 1 | N16: 2
A17: Perú | B17: 46 | C17: =2+1 -> 3 | D17: =3 -> 3 | E17: 0 | F17: =5 -> 5 | G17: 0 | H17: 2 | I17: 3 | J17: 1 | K17: 6 | L17: =8+1 -> 9 | M17: 8 | N17: 6
A18: Panamá | B18: 39 | C18: =9+1 -> 10 | D18: =2 -> 2 | E18: 0 | F18: =3 -> 3 | G18: 2 | H18: 3 | I18: 1 | J18: 3 | K18: 3 | L18: =4+1 -> 5 | M18: 4 | N18: 3
A19: Honduras | B19: 27 | C19: =3 -> 3 | D19: =2 -> 2 | E19: =1 -> 1 | F19: =1 -> 1 | G19: 2 | H19: 3 | I19: =3 -> 3 | J19: =1+1 -> 2 | K19: 0 | L19: =1 -> 1 | M19: 5 | N19: 4
A20: Alemania | B20: 3 | C20: =1 -> 1 | D20: =1 -> 1 | E20: 0 | F20: 0 | G20: 0 | H20: 0 | I20: 0 | J20: 0 | K20: 0 | L20: =1 -> 1 | M20: 0 | N20: 0
A21: Argentina | B21: 8 | C21: =2+1 -> 3 | D21: 0 | E21: =1 -> 1 | F21: =1 -> 1 | G21: 2 | H21: 0 | I21: 0 | J21: 0 | K21: 0 | L21: =1 -> 1 | M21: 0 | N21: 0
A22: Bélgica | B22: 2 | C22: 0 | D22: 0 | E22: 0 | F22: =1 -> 1 | G22: 0 | H22: 0 | I22: 0 | J22: 0 | K22: 0 | L22: 0 | M22: 0 | N22: 1
A23: Belice | B23: 1 | C23: 0 | D23: 0 | E23: 0 | F23: 0 | G23: 1 | H23: 0 | I23: 0 | J23: 0 | K23: 0 | L23: 0 | M23: 0 | N23: 0
A24: Bolivia | B24: 4 | C24: 0 | D24: 0 | E24: 0 | F24: =2 -> 2 | G24: 1 | H24: 0 | I24: 0 | J24: 0 | K24: 0 | L24: 0 | M24: 0 | N24: 1
A25: Brasil | B25: 2 | C25: =1 -> 1 | D25: 0 | E25: 0 | F25: 0 | G25: 0 | H25: 0 | I25: 0 | J25: =1 -> 1 | K25: 0 | L25: 0 | M25: 0 | N25: 0
A26: Canadá | B26: 9 | C26: 0 | D26: =1 -> 1 | E26: 0 | F26: 0 | G26: 1 | H26: 0 | I26: =1 -> 1 | J26: =2+1 -> 3 | K26: 0 | L26: =1 -> 1 | M26: 1 | N26: 1
A27: Checoslovaquia | B27: 1 | C27: 0 | D27: 0 | E27: 0 | F27: 0 | G27: 0 | H27: 0 | I27: =1 -> 1 | J27: 0 | K27: 0 | L27: 0 | M27: 0 | N27: 0
A28: Chile | B28: 3 | C28: 0 | D28: 0 | E28: 1 | F28: 0 | G28: 1 | H28: 0 | I28: 0 | J28: 0 | K28: =1 -> 1 | L28: 0 | M28: 0 | N28: 0
A29: Ecuador | B29: 16 | C29: =1 -> 1 | D29: 0 | E29: =3 -> 3 | F29: =1 -> 1 | G29: 1 | H29: 1 | I29: 0 | J29: =2 -> 2 | K29: 1 | L29: 0 | M29: 3 | N29: 3
A30: España | B30: 5 | C30: =1 -> 1 | D30: =1 -> 1 | E30: =1 -> 1 | F30: 0 | G30: 1 | H30: 0 | I30: 0 | J30: 0 | K30: 0 | L30: =1 -> 1 | M30: 0 | N30: 0
A31: Filipinas | B31: 4 | C31: 0 | D31: =2 -> 2 | E31: 0 | F31: 0 | G31: 0 | H31: 0 | I31: 0 | J31: 0 | K31: 0 | L31: 0 | M31: 2 | N31: 0
A32: Francia | B32: 7 | C32: =1 -> 1 | D32: 0 | E32: 0 | F32: =1 -> 1 | G32: 1 | H32: 0 | I32: =1 -> 1 | J32: =1 -> 1 | K32: 0 | L32: 0 | M32: 0 | N32: 2
A33: Guatemala | B33: 17 | C33: =2 -> 2 | D33: =2 -> 2 | E33: =2 -> 2 | F33: =3 -> 3 | G33: 2 | H33: 0 | I33: 0 | J33: 0 | K33: 3 | L33: =2+1 -> 3 | M33: 0 | N33: 0
A34: Haití | B34: 3 | C34: 0 | D34: =1 -> 1 | E34: 0 | F34: 0 | G34: 0 | H34: 0 | I34: 0 | J34: 0 | K34: 0 | L34: =1 -> 1 | M34: 1 | N34: 0
A35: Holanda | B35: 2 | C35: 0 | D35: 0 | E35: 0 | F35: =1 -> 1 | G35: 0 | H35: 0 | I35: 0 | J35: 0 | K35: 1 | L35: 0 | M35: 0 | N35: 0
A36: Hong Kong | B36: 1 | C36: 0 | D36: 0 | E36: 0 | F36: 0 | G36: 0 | H36: 0 | I36: 0 | J36: 0 | K36: 1 | L36: 0 | M36: 0 | N36: 0
A37: India | B37: 3 | C37: 0 | D37: 0 | E37: 0 | F37: 0 | G37: 0 | H37: 0 | I37: 0 | J37: 0 | K37: 2 | L37: 0 | M37: 1 | N37: 0
A38: Irán | B38: 1 | C38: 0 | D38: 0 | E38: 0 | F38: =1 -> 1 | G38: 0 | H38: 0 | I38: 0 | J38: 0 | K38: 0 | L38: 0 | M38: 0 | N38: 0
A39: Israel | B39: 2 | C39: 0 | D39: 0 | E39: 0 | F39: 1 | G39: 0 | H39: 1 | I39: 0 | J39: 0 | K39: 0 | L39: 0 | M39: 0 | N39: 0
A40: Italia | B40: 6 | C40: =1 -> 1 | D40: 0 | E40: 0 | F40: =1 -> 1 | G40: 0 | H40: 0 | I40: 0 | J40: 0 | K40: 1 | L40: =1+1 -> 2 | M40: 0 | N40: 1
A41: Jamaica | B41: 4 | C41: =1 -> 1 | D41: 0 | E41: 0 | F41: 0 | G41: 0 | H41: 1 | I41: =1 -> 1 | J41: 0 | K41: 0 | L41: 0 | M41: 1 | N41: 0
A42: Jordania | B42: 1 | C42: 0 | D42: 0 | E42: =1 -> 1 | F42: 0 | G42: 0 | H42: 0 | I42: 0 | J42: 0 | K42: 0 | L42: 0 | M42: 0 | N42: 0
A43: Líbano | B43: 1 | C43: 0 | D43: 0 | E43: 0 | F43: 0 | G43: 0 | H43: 0 | I43: 0 | J43: 0 | K43: 0 | L43: 0 | M43: 1 | N43: 0
A44: México | B44: 22 | C44: 0 | D44: =3+1 -> 4 | E44: 1 | F44: 3 | G44: 0 | H44: 2 | I44: =2 -> 2 | J44: =1+1 -> 2 | K44: 0 | L44: =1 -> 1 | M44: 2 | N44: 5
A45: Nueva Zelanda | B45: 1 | C45: 0 | D45: 0 | E45: 0 | F45: 0 | G45: 1 | H45: 0 | I45: 0 | J45: 0 | K45: 0 | L45: 0 | M45: 0 | N45: 0
A46: Puerto Rico | B46: 2 | C46: 0 | D46: 0 | E46: 0 | F46: 0 | G46: 1 | H46: 0 | I46: 0 | J46: 0 | K46: 0 | L46: 0 | M46: 0 | N46: 1
A47: Rusia | B47: 5 | C47: =2 -> 2 | D47: =1 -> 1 | E47: 0 | F47: 0 | G47: 1 | H47: 0 | I47: 0 | J47: 0 | K47: 0 | L47: 0 | M47: 0 | N47: 1
A48: Siria | B48: 1 | C48: 0 | D48: 0 | E48: 0 | F48: 0 | G48: 1 | H48: 0 | I48: 0 | J48: 0 | K48: 0 | L48: 0 | M48: 0 | N48: 0
A49: Sri Lanka | B49: 1 | C49: 0 | D49: =1 -> 1 | E49: 0 | F49: 0 | G49: 0 | H49: 0 | I49: 0 | J49: 0 | K49: 0 | L49: 0 | M49: 0 | N49: 0
A50: Suiza | B50: 2 | C50: 0 | D50: 0 | E50: 0 | F50: 2 | G50: 0 | H50: 0 | I50: 0 | J50: 0 | K50: 0 | L50: 0 | M50: 0 | N50: 0
A51: Taiwán | B51: 5 | C51: =2 -> 2 | D51: 0 | E51: =1 -> 1 | F51: 0 | G51: 0 | H51: 0 | I51: =1 -> 1 | J51: 0 | K51: 0 | L51: =1 -> 1 | M51: 0 | N51: 0
A52: Trinidad y Tobago | B52: 1 | C52: 0 | D52: 0 | E52: 0 | F52: 0 | G52: 0 | H52: 0 | I52: =1 -> 1 | J52: 0 | K52: 0 | L52: 0 | M52: 0 | N52: 0
A53: Ucrania | B53: 5 | C53: 0 | D53: 0 | E53: =4 -> 4 | F53: 0 | G53: 0 | H53: 0 | I53: 0 | J53: 0 | K53: 1 | L53: 0 | M53: 0 | N53: 0
A54: Uruguay | B54: 4 | C54: 0 | D54: 0 | E54: 0 | F54: 0 | G54: 0 | H54: 0 | I54: =2 -> 2 | J54: 0 | K54: 0 | L54: =1 -> 1 | M54: 1 | N54: 0
A55: Venezuela | B55: 25 | C55: =1 -> 1 | D55: =5 -> 5 | E55: 0 | F55: =3 -> 3 | G55: 4 | H55: 2 | I55: 0 | J55: 2 | K55: 5 | L55: 0 | M55: 0 | N55: 3
A56: Apátrida | B56: 1 | C56: =1 -> 1 | D56: 0 | E56: 0 | F56: 0 | G56: 0 | H56: 0 | I56: 0 | J56: 0 | K56: 0 | L56: 0 | M56: 0 | N56: 0
A59: FUENTE: Sección de Opciones y Naturalizaciones del Tribunal Supremo de Elecciones.

Sheet 18
A1: CUADRO 18
A2: COSTA RICA: INGRESO DE SOLICITUDES DE DETERMINACIÓN DE PATERNIDAD
A3: POR PROVINCIA, SEGÚN MES, AL 31 DE DICIEMBRE 2014
A5: Mes | B5: Total | C5: San José | D5: Alajuela | E5: Cartago | F5: Heredia | G5: Guanacaste | H5: Puntarenas | I5: Limón | J5: Partido Especial
A7: Total | B7: =SUM(B9:B20) -> 5657 | C7: =SUM(C9:C20) -> 1966 | D7: =SUM(D9:D20) -> 980 | E7: 445 | F7: 326 | G7: 507 | H7: 556 | I7: 874 | J7: =SUM(J9:J20) -> 3
A9: Enero | B9: =SUM(C9:J9) -> 427 | C9: 156 | D9: 52 | E9: 32 | F9: 37 | G9: 41 | H9: 35 | I9: 74 | J9: 0
A10: Febrero | B10: =SUM(C10:J10) -> 487 | C10: 160 | D10: 94 | E10: 35 | F10: 30 | G10: 40 | H10: 37 | I10: 91 | J10: 0
A11: Marzo | B11: 521 | C11: 169 | D11: 91 | E11: 39 | F11: 35 | G11: 44 | H11: 55 | I11: 87 | J11: 1
A12: Abril | B12: 219 | C12: 79 | D12: 41 | E12: 20 | F12: 12 | G12: 17 | H12: 13 | I12: 37 | J12: 0
A13: Mayo | B13: 701 | C13: 250 | D13: 128 | E13: 44 | F13: 47 | G13: 68 | H13: 76 | I13: 88 | J13: 0
A14: Junio | B14: =SUM(C14:J14) -> 460 | C14: 162 | D14: 100 | E14: 42 | F14: 26 | G14: 31 | H14: 33 | I14: 65 | J14: 1
A15: Julio | B15: 381 | C15: 102 | D15: 58 | E15: 35 | F15: 21 | G15: 39 | H15: 51 | I15: 75 | J15: 0
A16: Agosto | B16: 577 | C16: 239 | D16: 90 | E16: 37 | F16: 37 | G16: 48 | H16: 62 | I16: 63 | J16: 1
A17: Setiembre | B17: 430 | C17: 176 | D17: 83 | E17: 41 | F17: 11 | G17: 32 | H17: 25 | I17: 62 | J17: 0
A18: Octubre | B18: 678 | C18: 212 | D18: 93 | E18: 44 | F18: 40 | G18: 78 | H18: 92 | I18: 119 | J18: 0
A19: Noviembre | B19: 481 | C19: 159 | D19: 84 | E19: 47 | F19: 21 | G19: 51 | H19: 52 | I19: 67 | J19: 0
A20: Diciembre | B20: 295 | C20: 102 | D20: 66 | E20: 29 | F20: 9 | G20: 18 | H20: 25 | I20: 46 | J20: 0
A23: Fuente: Sección de Inscripciones del Tribunal Supremo de Elecciones.

Sheet 19
A2: CUADRO 19
A3: COSTA RICA: INGRESO DE SOLICITUDES DE DETERMINACIÓN DE PATERNIDAD, POR MES
A4: SEGÚN NACIONALIDAD DE LOS PADRES, AL 31 DE DICIEMBRE DE 2014
A6: NACIONALIDAD | B6: TOTAL | C6: Enero | D6: Febrero | E6: Marzo | F6: Abril | G6: Mayo | H6: Junio | I6: Julio | J6: Agosto | K6: Setiembre | L6: Octubre | M6: Noviembre | N6: Diciembre
A8: TOTAL | B8: =B11+B15+B19+B23+B27+B31 -> 5657 | C8: =C11+C15+C19+C23+C27+C31 -> 427 | D8: =D11+D15+D19+D23+D27+D31 -> 487 | E8: =E11+E15+E19+E23+E27+E31 -> 521 | F8: 219 | G8: 701 | H8: =H11+H15+H19+H23+H27+H31 -> 460 | I8: =I11+I15+I19+I23+I27+I31 -> 381 | J8: 577 | K8: 430 | L8: 678 | M8: 481 | N8: 295
A10: Costa Rica
A11: Presunto padre | B11: =SUM(C11:N11) -> 4985 | C11: 371 | D11: 427 | E11: 458 | F11: 195 | G11: 606 | H11: 396 | I11: 344 | J11: 528 | K11: 379 | L11: 596 | M11: 417 | N11: 268
A12: Madre | B12: =SUM(C12:N12) -> 4702 | C12: =C16+C20+C24+C28+C32 -> 40 | D12: 435 | E12: 471 | F12: 193 | G12: 605 | H12: 407 | I12: 340 | J12: 517 | K12: 382 | L12: 601 | M12: 441 | N12: 270
A14: Nicaragua
A15: Presunto padre | B15: =SUM(C15:N15) -> 595 | C15: 51 | D15: 50 | E15: 59 | F15: 21 | G15: 83 | H15: 57 | I15: 32 | J15: 43 | K15: 45 | L15: 75 | M15: 55 | N15: 24
A16: Madre | B16: =SUM(C16:N16) -> 589 | C16: 39 | D16: 51 | E16: 46 | F16: 26 | G16: 93 | H16: 50 | I16: 40 | J16: 60 | K16: 45 | L16: 75 | M16: 39 | N16: 25
A18: Colombia
A19: Presunto padre | B19: =SUM(C19:N19) -> 22 | C19: 3 | D19: 2 | E19: 2 | F19: 1 | G19: 4 | H19: 1 | I19: 1 | J19: 0 | K19: 1 | L19: 3 | M19: 4 | N19: 0
A20: Madre | B20: =SUM(C20:N20) -> 3 | C20: 0 | D20: 0 | E20: 0 | F20: 0 | G20: 2 | H20: 0 | I20: 0 | J20: 0 | K20: 0 | L20: 0 | M20: 1 | N20: 0
A22: Panamá
A23: Presunto padre | B23: =SUM(C23:N23) -> 10 | C23: 0 | D23: 1 | E23: 1 | F23: 1 | G23: 1 | H23: 2 | I23: =1 -> 1 | J23: 1 | K23: 1 | L23: 0 | M23: 0 | N23: 1
A24: Madre | B24: =SUM(C24:N24) -> 3 | C24: 0 | D24: 0 | E24: 0 | F24: 0 | G24: 0 | H24: 1 | I24: 0 | J24: 0 | K24: 2 | L24: 0 | M24: 0 | N24: 0
A26: Otros
A27: Presunto padre | B27: =SUM(C27:N27) -> 26 | C27: 1 | D27: 4 | E27: =0+0 -> 0 | F27: 1 | G27: 4 | H27: 4 | I27: =1+1 -> 2 | J27: =1+1+1 -> 3 | K27: =1+0+1 -> 2 | L27: 2 | M27: 2 | N27: 1
A28: Madre | B28: =SUM(C28:N28) -> 8 | C28: 0 | D28: 1 | E28: =2+1 -> 3 | F28: 0 | G28: 1 | H28: 2 | I28: =0+0 -> 0 | J28: =0+0+0 -> 0 | K28: =0+1+0 -> 1 | L28: 0 | M28: 0 | N28: 0
A30: No Indica
A31: Presunto padre | B31: =SUM(C31:N31) -> 19 | C31: 1 | D31: 3 | E31: 1 | F31: 0 | G31: 3 | H31: 0 | I31: 1 | J31: 2 | K31: 2 | L31: 2 | M31: 3 | N31: 1
A32: Madre | B32: =SUM(C32:N32) -> 5 | C32: 1 | D32: 0 | E32: 1 | F32: 0 | G32: 0 | H32: 0 | I32: 1 | J32: 0 | K32: 0 | L32: 2 | M32: 0 | N32: 0
A35: Fuente: Sección de Inscripciones del Tribunal Supremo de Elecciones.

Sheet 20
A1: CUADRO 20
A2: COSTA RICA: RESULTADO DE PRUEBAS DE ADN PARA
A3: DETERMINAR LA PATERNIDAD, SEGÚN MES
A4: AL 31 DE DICIEMBRE 2014
A6: Mes | B6: Total | D6: Absoluto | I6: Porcentaje
D7: Positivo | F7: Negativo | I7: Positivo | K7: Negativo
A9: Total | B9: =SUM(B11:B22) -> 2723 | D9: =SUM(D11:D22) -> 2064 | F9: =SUM(F11:F22) -> 659 | I9: =+D9/B9*100 -> 75.79875138 | K9: =+F9/B9*100 -> 24.20124862
A11: Enero | B11: =SUM(D11:F11) -> 142 | D11: 92 | F11: 50 | I11: =+D11/B11*100 -> 64.78873239 | K11: =+F11/B11*100 -> 35.21126761
A12: Febrero | B12: =SUM(D12:F12) -> 302 | D12: 235 | F12: 67 | I12: =+D12/B12*100 -> 77.81456954 | K12: =+F12/B12*100 -> 22.18543046
A13: Marzo | B13: 220 | D13: 186 | F13: 34 | I13: 84.54545455 | K13: 15.45454545
A14: Abril | B14: 127 | D14: 100 | F14: 27 | I14: 78.74015748 | K14: 21.25984252
A15: Mayo | B15: 289 | D15: 234 | F15: 55 | I15: 80.96885813 | K15: 19.03114187
A16: Junio | B16: 190 | D16: 150 | F16: 40 | I16: 78.94736842 | K16: 21.05263158
A17: Julio | B17: 196 | D17: 147 | F17: 49 | I17: 75 | K17: 25
A18: Agosto | B18: 454 | D18: 357 | F18: 97 | I18: 78.63436123 | K18: 21.36563877
A19: Setiembre | B19: 245 | D19: 169 | F19: 76 | I19: 68.97959184 | K19: 31.02040816
A20: Octubre | B20: 324 | D20: 234 | F20: 90 | I20: 72.22222222 | K20: 27.77777778
A21: Noviembre | B21: 129 | D21: 111 | F21: 18 | I21: 86.04651163 | K21: 13.95348837
A22: Diciembre | B22: 105 | D22: 49 | F22: 56 | I22: 46.66666667 | K22: 53.33333333
A25: Fuente: Sección de Inscripciones del Tribunal Supremo de Elecciones.

Sheet 21
A1: CUADRO 21
A2: COSTA RICA: CANTIDAD DE RESOLUCIONES, POR TIPO DE RESOLUCIÓN, SEGÚN MES
A3: AL 31 DE DICIEMBRE 2014
A5: Mes | B5: Total | C5: Tipo de resolución
C6: Electorales 1/ | D6: Inscripciones | E6: Municipales | F6: Naturalizaciones | G6: Ocursos y Paternidad | H6: Procedimientos Administrativos
A8: Total | B8: =SUM(C8:H8) -> 5416 | C8: =SUM(C10:C21) -> 167 | D8: 1125 | E8: 118 | F8: 3566 | G8: 105 | H8: 335
A10: Enero | B10: =SUM(C10:H10) -> 368 | C10: 37 | D10: 73 | E10: 5 | F10: 241 | G10: 2 | H10: 10
A11: Febrero | B11: 459 | C11: 37 | D11: 73 | E11: 8 | F11: 314 | G11: 4 | H11: 23
A12: Marzo | B12: 389 | C12: 12 | D12: 75 | E12: 17 | F12: 258 | G12: 10 | H12: 17
A13: Abril | B13: 278 | C13: 16 | D13: 48 | E13: 7 | F13: 189 | G13: 9 | H13: 9
A14: Mayo | B14: 397 | C14: 9 | D14: 7 | E14: 11 | F14: 315 | G14: 19 | H14: 36
A15: Junio | B15: 493 | C15: 7 | D15: 75 | E15: 13 | F15: 360 | G15: 6 | H15: 32
A16: Julio | B16: 379 | C16: 6 | D16: 103 | E16: 9 | F16: 235 | G16: 6 | H16: 20
A17: Agosto | B17: 379 | C17: 8 | D17: 121 | E17: 17 | F17: 215 | G17: 4 | H17: 14
A18: Setiembre | B18: 558 | C18: 9 | D18: 72 | E18: 11 | F18: 342 | G18: 13 | H18: 111
A19: Octubre | B19: 829 | C19: 11 | D19: 270 | E19: 11 | F19: 497 | G19: 4 | H19: 36
A20: Noviembre | B20: 445 | C20: 4 | D20: 122 | E20: 1 | F20: 293 | G20: 11 | H20: 14
A21: Diciembre | B21: 442 | C21: 11 | D21: 86 | E21: 8 | F21: 307 | G21: 17 | H21: 13
A24: 1/ Se excluye la resolución n.° 4440-E6-2014, por ser un pronunciamiento sobre un recurso de apelación dentro de un proceso de beligerancia política (de trámite y no final).
A25: Fuente: Secretaría del Tribunal Supremo de Elecciones.

Sheet 22
A1: CUADRO 22
A2: COSTA RICA: CANTIDAD DE RESOLUCIONES ELECTORALES
A3: POR ACCIÓN TRAMITADA, SEGÚN MES
A4: AL 31 DE DICIEMBRE 2014
A6: Mes | B6: Total | C6: Acción Tramitada
B7: Total | C7: Financiamiento de Partidos Políticos | D7: Hermenéutica Electoral | E7: Amparo Electoral | F7: Denuncia beligerancia o participación política prohibida | G7: Democracia semidirecta | H7: Apelación electoral | I7: Acción o demanda de nulidad | J7: Declaratorias de Elección | K7: Otros asuntos electorales
A9: Total | B9: =SUM(B11:B22) -> 167 | C9: 12 | D9: 44 | E9: 51 | F9: 21 | G9: 4 | H9: 17 | I9: 5 | J9: 3 | K9: 10
A11: Enero | B11: =SUM(C11:K11) -> 36 | C11: 3 | D11: 7 | E11: 17 | F11: 3 | G11: 0 | H11: 4 | I11: 0 | J11: 0 | K11: 2
A12: Febrero | B12: =SUM(C12:K12) -> 37 | C12: 1 | D12: 7 | E12: 9 | F12: 5 | G12: 0 | H12: 6 | I12: 5 | J12: 1 | K12: 3
A13: Marzo | B13: 13 | C13: 2 | D13: 3 | E13: 2 | F13: 0 | G13: 1 | H13: 2 | I13: 0 | J13: 1 | K13: 2
A14: Abril | B14: 16 | C14: 0 | D14: 3 | E14: 8 | F14: 0 | G14: 1 | H14: 2 | I14: 0 | J14: 1 | K14: 1
A15: Mayo | B15: 9 | C15: 1 | D15: 1 | E15: 4 | F15: 3 | G15: 0 | H15: 0 | I15: 0 | J15: 0 | K15: 0
A16: Junio | B16: 7 | C16: 0 | D16: 1 | E16: 4 | F16: 0 | G16: 1 | H16: 1 | I16: 0 | J16: 0 | K16: 0
A17: Julio | B17: 6 | C17: 0 | D17: 3 | E17: 1 | F17: 0 | G17: 1 | H17: 0 | I17: 0 | J17: 0 | K17: 1
A18: Agosto | B18: 8 | C18: 0 | D18: 3 | E18: 1 | F18: 4 | G18: 0 | H18: 0 | I18: 0 | J18: 0 | K18: 0
A19: Setiembre | B19: 9 | C19: 0 | D19: 5 | E19: 2 | F19: 1 | G19: 0 | H19: 1 | I19: 0 | J19: 0 | K19: 0
A20: Octubre | B20: 11 | C20: 1 | D20: 5 | E20: 1 | F20: 3 | G20: 0 | H20: 0 | I20: 0 | J20: 0 | K20: 1
A21: Noviembre | B21: 4 | C21: 0 | D21: 1 | E21: 1 | F21: 2 | G21: 0 | H21: 0 | I21: 0 | J21: 0 | K21: 0
A22: Diciembre | B22: 11 | C22: 4 | D22: 5 | E22: 1 | F22: 0 | G22: 0 | H22: 1 | I22: 0 | J22: 0 | K22: 0
A25: Fuente: Secretaría del Tribunal Supremo de Elecciones.

Sheet 23
A1: CUADRO 23
A2: COSTA RICA: CANTIDAD DE RESOLUCIONES MUNICIPALES
A3: POR RESULTADO DE LA GESTIÓN, SEGÚN MES
A4: AL 31 DE DICIEMBRE 2014
A6: Mes | B6: Total | C6: Resultado de la Gestión
B7: Total | C7: Con lugar | D7: Rechazo de plano | E7: Sin lugar | F7: Archivo
A9: Total | B9: =SUM(B11:B22) -> 118 | C9: =SUM(C11:C22) -> 91 | D9: =SUM(D11:D22) -> 5 | E9: =SUM(E11:E22) -> 3 | F9: =SUM(F11:F22) -> 19
A11: Enero | B11: =SUM(C11:F11) -> 5 | C11: 4 | D11: 1 | E11: 0 | F11: 0
A12: Febrero | B12: 8 | C12: 5 | D12: 1 | E12: 1 | F12: 1
A13: Marzo | B13: 17 | C13: 14 | D13: 0 | E13: 0 | F13: 3
A14: Abril | B14: 7 | C14: 4 | D14: 1 | E14: 1 | F14: 1
A15: Mayo | B15: 11 | C15: 10 | D15: 0 | E15: 0 | F15: 1
A16: Junio | B16: 13 | C16: 10 | D16: 0 | E16: 0 | F16: 3
A17: Julio | B17: 9 | C17: 4 | D17: 2 | E17: 1 | F17: 2
A18: Agosto | B18: 17 | C18: 12 | D18: 0 | E18: 0 | F18: 5
A19: Setiembre | B19: 11 | C19: 11 | D19: 0 | E19: 0 | F19: 0
A20: Octubre | B20: 11 | C20: 10 | D20: 0 | E20: 0 | F20: 1
A21: Noviembre | B21: 1 | C21: 0 | D21: 0 | E21: 0 | F21: 1
A22: Diciembre | B22: 8 | C22: 7 | D22: 0 | E22: 0 | F22: 1
A25: Fuente: Secretaría del Tribunal Supremo de Elecciones.

Sheet 24
A2: CUADRO 24
A3: COSTA RICA: DONACIONES EN EFECTIVO REPORTADAS ANTE EL TRIBUNAL SUPREMO DE ELECCIONES
A4: SEGÚN PARTIDO POLÍTICO, AL 31 DE DICIEMBRE 2014 1/
A5: (Cifras en colones )
A7: PARTIDO POLÍTICO | B7: OCTUBRE A DICIEMBRE 2014 | C7: PROCESO ELECTORAL 2014 2/ | D7: ACUMULADO 2010-2014 3/ | E7: CICLO PRESIDENCIAL PERIODO NO ELECTORAL 2014-2015 4/
A10: TOTAL | B10: =SUM(B12:B59) -> 60748574 | C10: =SUM(C12:C59) -> 1303306471 | D10: =SUM(D12:D59) -> 2536704737 | E10: =SUM(E12:E59) -> 247457741.8
A12: ACCESIBILIDAD SIN EXCLUSIÓN | B12: 0 | C12: 0 | D12: 7670000 | E12: 0
A13: ACCIÓN CIUDADANA | B13: 4561528 | C13: 47054428.74 | D13: 142858141.6 | E13: 15990604.77
A14: ALIANZA PATRIÓTICA | B14: 100000 | C14: 890000 | D14: 890000 | E14: 525000
A15: AVANCE NACIONAL | B15: 0 | C15: 0 | D15: 0 | E15: 0
A16: DE LOS TRABAJADORES | B16: 0 | C16: 0 | D16: 0 | E16: 0
A17: FRENTE AMPLIO | B17: 25508820 | C17: 54081800 | D17: 182811182.7 | E17: 57976220
A18: INTEGRACIÓN NACIONAL | B18: 0 | C18: 1009110 | D18: 60329110 | E18: 0
A19: LIBERACIÓN NACIONAL | B19: 28398276 | C19: 941297291 | D19: 1232800689 | E19: 155300202
A20: MOVIMIENTO LIBERTARIO | B20: 0 | C20: 200616920 | D20: 451415040.8 | E20: 14224765
A21: NUEVA GENERACIÓN | B21: 0 | C21: 15244016.75 | D21: 15899666.75 | E21: 0
A22: NUEVO PARTIDO SOCIALISTA | B22: 0 | C22: 0 | D22: 0 | E22: 0
A23: PATRIA NUEVA | B23: 0 | C23: 4482100 | D23: 4482100 | E23: 0
A24: RENOVACIÓN COSTARRICENSE | B24: 511000 | C24: 1300000 | D24: 47475245 | E24: 731000
A25: RESTAURACIÓN NACIONAL | B25: 143000 | C25: 5978850 | D25: 23908810 | E25: 211000
A26: UNIDAD SOCIAL CRISTIANA | B26: 1169450 | C26: 20120000 | D26: 291930364.1 | E26: 1806450
A27: ALIANZA DEMÓCRATA CRISTIANA | B27: 0 | C27: 0 | D27: 0 | E27: 0
A28: DE LOS TRANSPORTISTAS | B28: 0 | C28: 3287500 | D28: 4037500 | E28: 0
A29: MOVIMIENTO DE TRABAJADORES Y CAMPESINOS | B29: 0 | C29: 0 | D29: 2608584.05 | E29: 0
A30: PATRIA, IGUALDAD Y DEMOCRACIA (P) | B30: 0 | C30: 0 | D30: 0 | E30: 0
A31: PATRIA, IGUALDAD Y DEMOCRACIA (SJ) | B31: 0 | C31: 0 | D31: 0 | E31: 0
A32: VERDE | B32: 0 | C32: 6840000 | D32: 6865000 | E32: 0
A33: VIVA PUNTARENAS | B33: 0 | C33: 50000 | D33: 50000 | E33: 0
A34: ACCIÓN CANTONAL SIQUIRRES INDEPENDIENTE | B34: 0 | C34: 0 | D34: 616000 | E34: 0
A35: ACCIÓN NARANJEÑA | B35: 0 | C35: 0 | D35: 48000 | E35: 0
A36: ACCIÓN QUEPEÑA | B36: 0 | C36: 0 | D36: 220000 | E36: 0
A37: ACUERDO CANTONAL DESAMPARADEÑO | B37: 0 | C37: 0 | D37: 4263500 | E37: 0
A38: AUTÓNOMO OROMONTANO | B38: 0 | C38: 0 | D38: 795000 | E38: 0
A39: AVANCE MONTES DE OCA | B39: 50000 | C39: 0 | D39: 0 | E39: 50000
A40: CÍVICO TIBÁS FUENTEOVEJUNA | B40: 0 | C40: 0 | D40: 370000 | E40: 0
A41: CURRIDABAT SIGLO XXI | B41: 0 | C41: 0 | D41: 2816050 | E41: 0
A42: DEL SOL | B42: 0 | C42: 0 | D42: 8142809.35 | E42: 0
A43: EL PUENTE Y LOS CAMINOS DE MORA | B43: 0 | C43: 0 | D43: 2283140 | E43: 0
A44: GOICOCHEA EN ACCIÓN | B44: 0 | C44: 0 | D44: 1426000 | E44: 0
A45: INDEPENDIENTE BELEMITA | B45: 0 | C45: 0 | D45: 2987000 | E45: 0
A46: INTEGRACIÓN BARBAREÑA | B46: 0 | C46: 0 | D46: 707222.45 | E46: 0
A47: MOVIMIENTO AVANCE SANTO DOMINGO | B47: 306500 | C47: 1039455 | D47: 10221273.4 | E47: 642500
A48: ORGANIZACIÓN LABORISTA DE AGUIRRE | B48: 0 | C48: 0 | D48: 367000 | E48: 0
A49: RENOVEMOS ALAJUELA | B49: 0 | C49: 15000 | D49: 692000 | E49: 0
A50: ÚNICO ABANGAREÑO | B50: 0 | C50: 0 | D50: 100000 | E50: 0
A51: UNIÓN ATENIENSE | B51: 0 | C51: 0 | D51: 165000 | E51: 0
A52: UNIÓN PALMAREÑA | B52: 0 | C52: 0 | D52: 1509427.77 | E52: 0
A53: YUNTA PROGRESISTA ESCAZUCEÑA | B53: 0 | C53: 0 | D53: 17758880 | E53: 0
A54: ALIANZA ZARCEREÑA (COALICIÓN) | B54: 0 | C54: 0 | D54: 50000 | E54: 0
A55: BARVA UNIDA (COALICIÓN) | B55: 0 | C55: 0 | D55: 500000 | E55: 0
A56: CARTAGO UNIDO (COALICIÓN) | B56: 0 | C56: 0 | D56: 2022000 | E56: 0
A57: MONTES DE OCA UNIDA (COALICIÓN) | B57: 0 | C57: 0 | D57: 864000 | E57: 0
A58: RAMONENSE (COALICIÓN) | B58: 0 | C58: 0 | D58: 30000 | E58: 0
A59: UNIDOS POR SAN CARLOS (COALICIÓN) | B59: 0 | C59: 0 | D59: 1719000 | E59: 0
A61: Notas:
A62: 1/ El detalle de cada contribuyente se puede consultar en http://www.tse.go.cr/contribuciones_partidos.htm
A63: 2/ El Proceso Electoral abarca el periodo comprendido entre el 2 de octubre de 2013 y el 21 de mayo de 2014.
A64: 3/ El valor acumulado de las donaciones comprende desde el 1° de marzo de 2010 hasta el 21 de mayo de 2014.
A66: 4/ El valor acumulado de las donaciones comprende desde el 22 de mayo al 31 de diciembre de 2014.
A68: Fuente: Reportes de contribuciones remitidos periódicamente por los partidos políticos al Departamento de Financiamiento de Partidos Políticos del Tribunal Supremo de Elecciones.
